Department family,Entity,Date,Expense type,Expense area,Supplier,Transaction number,Amount,VAT registration number
Department for Business Innovation and Skills,Intellectual Property Office,13/01/2015,Travel and subsistence Overseas,International Policy Directorate,Personal expenses name witheld,ER128192,277.5,Not applicable
Department for Business Innovation and Skills,Intellectual Property Office,20/01/2015,Computer Hardware,Business Support Directorate,Specialist Computer Centres Plc,OP-L947243,58582.54,Not applicable
Department for Business Innovation and Skills,Intellectual Property Office,29/01/2015,Office Equipment,"People, Property and Services Directorate",Computacenter (UK) ltd,3880390365,21533.88,Not applicable
Department for Business Innovation and Skills,Intellectual Property Office,28/01/2015,Agency Staff,Patents Directorate,Brook Street (UK) Ltd,30846340,110.52,Not applicable
Department for Business Innovation and Skills,Intellectual Property Office,08/01/2015,Agency Staff,Trade Marks Directorate,Brook Street (UK) Ltd,30825482,213.93,Not applicable
Department for Business Innovation and Skills,Intellectual Property Office,09/01/2015,Agency Staff,Trade Marks Directorate,Brook Street (UK) Ltd,30836607,299.38,Not applicable
Department for Business Innovation and Skills,Intellectual Property Office,08/01/2015,Agency Staff,Patents Directorate,Brook Street (UK) Ltd,30825482,331.56,Not applicable
Department for Business Innovation and Skills,Intellectual Property Office,28/01/2015,Agency Staff,Trade Marks Directorate,Brook Street (UK) Ltd,30858508,431.35,Not applicable
Department for Business Innovation and Skills,Intellectual Property Office,09/01/2015,Agency Staff,Patents Directorate,Brook Street (UK) Ltd,30836607,442.08,Not applicable
Department for Business Innovation and Skills,Intellectual Property Office,08/01/2015,Agency Staff,"People, Property and Services Directorate",Brook Street (UK) Ltd,30825482,494.48,Not applicable
Department for Business Innovation and Skills,Intellectual Property Office,28/01/2015,Agency Staff,Trade Marks Directorate,Brook Street (UK) Ltd,30846340,498,Not applicable
Department for Business Innovation and Skills,Intellectual Property Office,08/01/2015,Agency Staff,Trade Marks Directorate,Brook Street (UK) Ltd,30825482,500.18,Not applicable
Department for Business Innovation and Skills,Intellectual Property Office,07/01/2015,Agency Staff,Trade Marks Directorate,Brook Street (UK) Ltd,30813046,543.58,Not applicable
Department for Business Innovation and Skills,Intellectual Property Office,28/01/2015,Agency Staff,Patents Directorate,Brook Street (UK) Ltd,30858508,552.6,Not applicable
Department for Business Innovation and Skills,Intellectual Property Office,07/01/2015,Agency Staff,Patents Directorate,Brook Street (UK) Ltd,30813046,561.91,Not applicable
Department for Business Innovation and Skills,Intellectual Property Office,09/01/2015,Agency Staff,"People, Property and Services Directorate",Brook Street (UK) Ltd,30836607,589.16,Not applicable
Department for Business Innovation and Skills,Intellectual Property Office,28/01/2015,Agency Staff,Trade Marks Directorate,Brook Street (UK) Ltd,30858508,671.77,Not applicable
Department for Business Innovation and Skills,Intellectual Property Office,28/01/2015,Agency Staff,Trade Marks Directorate,Brook Street (UK) Ltd,30846340,814.16,Not applicable
Department for Business Innovation and Skills,Intellectual Property Office,07/01/2015,Agency Staff,Trade Marks Directorate,Brook Street (UK) Ltd,30813046,829.13,Not applicable
Department for Business Innovation and Skills,Intellectual Property Office,12/01/2015,Agency Staff,Copyright and IP Enforcement Directorate,Michael Page International Recruitment Ltd,5758548,885.78,Not applicable
Department for Business Innovation and Skills,Intellectual Property Office,28/01/2015,Agency Staff,"People, Property and Services Directorate",Brook Street (UK) Ltd,30858508,939.88,Not applicable
Department for Business Innovation and Skills,Intellectual Property Office,28/01/2015,Agency Staff,"People, Property and Services Directorate",Brook Street (UK) Ltd,30846340,1048.58,Not applicable
Department for Business Innovation and Skills,Intellectual Property Office,07/01/2015,Agency Staff,"People, Property and Services Directorate",Brook Street (UK) Ltd,30813046,1056.7,Not applicable
Department for Business Innovation and Skills,Intellectual Property Office,20/01/2015,Agency Staff,"People, Property and Services Directorate",Capita Business Services  Ltd,LO10023143,2182.71,Not applicable
Department for Business Innovation and Skills,Intellectual Property Office,05/01/2015,Agency Staff,"People, Property and Services Directorate",Capita Business Services  Ltd,LO10021323,2182.73,Not applicable
Department for Business Innovation and Skills,Intellectual Property Office,29/01/2015,Agency Staff,"People, Property and Services Directorate",Capita Business Services  Ltd,LO10024293,3637.86,Not applicable
Department for Business Innovation and Skills,Intellectual Property Office,09/01/2015,Agency Staff,"People, Property and Services Directorate",Capita Business Services  Ltd,LO10022536,3637.87,Not applicable
Department for Business Innovation and Skills,Intellectual Property Office,12/01/2015,Training,Patents Directorate,Business Language Services Ltd,14336,71,Not applicable
Department for Business Innovation and Skills,Intellectual Property Office,05/01/2015,Training,Finance Directorate,East of England Ambulance NHS Trust,652836,99,Not applicable
Department for Business Innovation and Skills,Intellectual Property Office,12/01/2015,Training,"People, Property and Services Directorate",British Red Cross,N929654,180,Not applicable
Department for Business Innovation and Skills,Intellectual Property Office,07/01/2015,Training,Patents Directorate,NAS Services Ltd,PRP2187517,249,Not applicable
Department for Business Innovation and Skills,Intellectual Property Office,22/01/2015,Training,Innovation Directorate,Whitehall & Industry Group,2140915,450,Not applicable
Department for Business Innovation and Skills,Intellectual Property Office,27/01/2015,Training,Business Support Directorate,Knowledge Academy,SO1073391A,929,Not applicable
Department for Business Innovation and Skills,Intellectual Property Office,21/01/2015,Training,"People, Property and Services Directorate",ACAS,1668796,3990,Not applicable
Department for Business Innovation and Skills,Intellectual Property Office,06/01/2015,Subscription to Professional bodies,"People, Property and Services Directorate",Personal expenses name witheld,52703,100,Not applicable
Department for Business Innovation and Skills,Intellectual Property Office,20/01/2015,Subscription to Professional bodies,"People, Property and Services Directorate",Personal expenses name witheld,52721,100,Not applicable
Department for Business Innovation and Skills,Intellectual Property Office,06/01/2015,Subscription to Professional bodies,"People, Property and Services Directorate",Personal expenses name witheld,52704,109,Not applicable
Department for Business Innovation and Skills,Intellectual Property Office,12/01/2015,Subscription to Professional bodies,"People, Property and Services Directorate",Personal expenses name witheld,52712,119,Not applicable
Department for Business Innovation and Skills,Intellectual Property Office,20/01/2015,Subscription to Professional bodies,"People, Property and Services Directorate",Personal expenses name witheld,52724,125,Not applicable
Department for Business Innovation and Skills,Intellectual Property Office,20/01/2015,Subscription to Professional bodies,"People, Property and Services Directorate",Personal expenses name witheld,52723,125,Not applicable
Department for Business Innovation and Skills,Intellectual Property Office,06/01/2015,Subscription to Professional bodies,"People, Property and Services Directorate",Personal expenses name witheld,52696,130,Not applicable
Department for Business Innovation and Skills,Intellectual Property Office,26/01/2015,Subscription to Professional bodies,"People, Property and Services Directorate",Personal expenses name witheld,52743,142,Not applicable
Department for Business Innovation and Skills,Intellectual Property Office,16/01/2015,Subscription to Professional bodies,"People, Property and Services Directorate",Personal expenses name witheld,52719,144,Not applicable
Department for Business Innovation and Skills,Intellectual Property Office,20/01/2015,Subscription to Professional bodies,"People, Property and Services Directorate",Personal expenses name witheld,52725,144,Not applicable
Department for Business Innovation and Skills,Intellectual Property Office,20/01/2015,Subscription to Professional bodies,"People, Property and Services Directorate",Personal expenses name witheld,52726,144,Not applicable
Department for Business Innovation and Skills,Intellectual Property Office,20/01/2015,Subscription to Professional bodies,"People, Property and Services Directorate",Personal expenses name witheld,52727,144,Not applicable
Department for Business Innovation and Skills,Intellectual Property Office,26/01/2015,Subscription to Professional bodies,"People, Property and Services Directorate",Personal expenses name witheld,52742,156.7,Not applicable
Department for Business Innovation and Skills,Intellectual Property Office,26/01/2015,Subscription to Professional bodies,"People, Property and Services Directorate",Personal expenses name witheld,52746,166.5,Not applicable
Department for Business Innovation and Skills,Intellectual Property Office,26/01/2015,Subscription to Professional bodies,"People, Property and Services Directorate",Personal expenses name witheld,52740,170,Not applicable
Department for Business Innovation and Skills,Intellectual Property Office,20/01/2015,Subscription to Professional bodies,"People, Property and Services Directorate",Personal expenses name witheld,52732,210,Not applicable
Department for Business Innovation and Skills,Intellectual Property Office,26/01/2015,Subscription to Professional bodies,"People, Property and Services Directorate",Personal expenses name witheld,52744,211,Not applicable
Department for Business Innovation and Skills,Intellectual Property Office,06/01/2015,Subscription to Professional bodies,"People, Property and Services Directorate",Personal expenses name witheld,52705,211,Not applicable
Department for Business Innovation and Skills,Intellectual Property Office,05/01/2015,Subscription to Professional bodies,"People, Property and Services Directorate",Personal expenses name witheld,52700,211,Not applicable
Department for Business Innovation and Skills,Intellectual Property Office,26/01/2015,Subscription to Professional bodies,"People, Property and Services Directorate",Personal expenses name witheld,52741,213.7,Not applicable
Department for Business Innovation and Skills,Intellectual Property Office,16/01/2015,Subscription to Professional bodies,"People, Property and Services Directorate",Personal expenses name witheld,52720,213.7,Not applicable
Department for Business Innovation and Skills,Intellectual Property Office,20/01/2015,Subscription to Professional bodies,"People, Property and Services Directorate",Personal expenses name witheld,52722,237.7,Not applicable
Department for Business Innovation and Skills,Intellectual Property Office,21/01/2015,Subscription to Professional bodies,"People, Property and Services Directorate",Personal expenses name witheld,52733,259,Not applicable
Department for Business Innovation and Skills,Intellectual Property Office,28/01/2015,Childcare costs,"People, Property and Services Directorate",P&MM Ltd Re Childcare Plus,502632,6461.8,Not applicable
Department for Business Innovation and Skills,Intellectual Property Office,26/01/2015,Childcare costs,"People, Property and Services Directorate",P&MM Ltd Re Childcare Plus,1019018,7590.3,Not applicable
Department for Business Innovation and Skills,Intellectual Property Office,12/01/2015,Relocation Removals & Excess Fare,"People, Property and Services Directorate",Personal expenses name witheld,52716,2.1,Not applicable
Department for Business Innovation and Skills,Intellectual Property Office,12/01/2015,Relocation Removals & Excess Fare,"People, Property and Services Directorate",Personal expenses name witheld,52715,33,Not applicable
Department for Business Innovation and Skills,Intellectual Property Office,13/01/2015,Relocation Removals & Excess Fare,"People, Property and Services Directorate",Andrews Property Services,52718,50,Not applicable
Department for Business Innovation and Skills,Intellectual Property Office,06/01/2015,Relocation Removals & Excess Fare,"People, Property and Services Directorate",Personal expenses name witheld,52702,588.8,Not applicable
Department for Business Innovation and Skills,Intellectual Property Office,30/01/2015,Relocation Removals & Excess Fare,"People, Property and Services Directorate",Somerset Bencoolen,26179-JAN15,3480.41,Not applicable
Department for Business Innovation and Skills,Intellectual Property Office,08/01/2015,Recruitment Advertising,Patents Directorate,Shamile S Karawgodage,52707,28.5,Not applicable
Department for Business Innovation and Skills,Intellectual Property Office,23/01/2015,Recruitment Advertising,Patents Directorate,Scott Weir,52739,187.09,Not applicable
Department for Business Innovation and Skills,Intellectual Property Office,09/01/2015,Recruitment Advertising,Patents Directorate,University of Liverpool,21503550,600,Not applicable
Department for Business Innovation and Skills,Intellectual Property Office,29/01/2015,Recruitment Advertising,Patents Directorate,AGCAS,26581,714,Not applicable
Department for Business Innovation and Skills,Intellectual Property Office,27/01/2015,Recruitment Advertising,Patents Directorate,University of Sheffield,1800113823,954,Not applicable
Department for Business Innovation and Skills,Intellectual Property Office,08/01/2015,Recruitment Advertising,"People, Property and Services Directorate",Acorn Recruitment Ltd,APS02660,3001.98,Not applicable
Department for Business Innovation and Skills,Intellectual Property Office,28/01/2015,Travel and subsistence UK,"People, Property and Services Directorate",HRG UK,426696024,-190.87,Not applicable
Department for Business Innovation and Skills,Intellectual Property Office,28/01/2015,Travel and subsistence UK,Copyright and IP Enforcement Directorate,HRG UK,426695973,-190.87,Not applicable
Department for Business Innovation and Skills,Intellectual Property Office,28/01/2015,Travel and subsistence UK,Business Support Directorate,HRG UK,426696043,-111.14,Not applicable
Department for Business Innovation and Skills,Intellectual Property Office,28/01/2015,Travel and subsistence UK,Business Support Directorate,HRG UK,426696042,-111.14,Not applicable
Department for Business Innovation and Skills,Intellectual Property Office,28/01/2015,Travel and subsistence UK,Business Support Directorate,HRG UK,426696045,-88.65,Not applicable
Department for Business Innovation and Skills,Intellectual Property Office,28/01/2015,Travel and subsistence UK,Business Support Directorate,HRG UK,426696044,-88.65,Not applicable
Department for Business Innovation and Skills,Intellectual Property Office,28/01/2015,Travel and subsistence UK,Trade Marks Directorate,HRG UK,426696001,-88.65,Not applicable
Department for Business Innovation and Skills,Intellectual Property Office,28/01/2015,Travel and subsistence UK,Business Support Directorate,HRG UK,426696153,-86.84,Not applicable
Department for Business Innovation and Skills,Intellectual Property Office,28/01/2015,Travel and subsistence UK,Patents Directorate,HRG UK,426730456,-75.52,Not applicable
Department for Business Innovation and Skills,Intellectual Property Office,28/01/2015,Travel and subsistence UK,Patents Directorate,HRG UK,426696016,-74.46,Not applicable
Department for Business Innovation and Skills,Intellectual Property Office,28/01/2015,Travel and subsistence UK,Copyright and IP Enforcement Directorate,HRG UK,426660993,-68.6,Not applicable
Department for Business Innovation and Skills,Intellectual Property Office,28/01/2015,Travel and subsistence UK,Innovation Directorate,HRG UK,426695972,-64.08,Not applicable
Department for Business Innovation and Skills,Intellectual Property Office,28/01/2015,Travel and subsistence UK,Copyright and IP Enforcement Directorate,HRG UK,426696146,-62.4,Not applicable
Department for Business Innovation and Skills,Intellectual Property Office,28/01/2015,Travel and subsistence UK,Copyright and IP Enforcement Directorate,HRG UK,426696145,-62.4,Not applicable
Department for Business Innovation and Skills,Intellectual Property Office,28/01/2015,Travel and subsistence UK,Innovation Directorate,HRG UK,426781871,-57.84,Not applicable
Department for Business Innovation and Skills,Intellectual Property Office,28/01/2015,Travel and subsistence UK,Patents Directorate,HRG UK,426730457,-48.33,Not applicable
Department for Business Innovation and Skills,Intellectual Property Office,28/01/2015,Travel and subsistence UK,International Policy Directorate,HRG UK,426764492,-47.07,Not applicable
Department for Business Innovation and Skills,Intellectual Property Office,28/01/2015,Travel and subsistence UK,Copyright and IP Enforcement Directorate,HRG UK,426685530,-39.26,Not applicable
Department for Business Innovation and Skills,Intellectual Property Office,28/01/2015,Travel and subsistence UK,Business Support Directorate,HRG UK,426696154,-34.51,Not applicable
Department for Business Innovation and Skills,Intellectual Property Office,28/01/2015,Travel and subsistence UK,Innovation Directorate,Leasedrive Velo Rental Management Ltd,CRD00071562,-30,Not applicable
Department for Business Innovation and Skills,Intellectual Property Office,28/01/2015,Travel and subsistence UK,Patents Directorate,HRG UK,426695961,-22.63,Not applicable
Department for Business Innovation and Skills,Intellectual Property Office,28/01/2015,Travel and subsistence UK,International Policy Directorate,HRG UK,426696000,-18.52,Not applicable
Department for Business Innovation and Skills,Intellectual Property Office,28/01/2015,Travel and subsistence UK,International Policy Directorate,HRG UK,426764496,-15.29,Not applicable
Department for Business Innovation and Skills,Intellectual Property Office,28/01/2015,Travel and subsistence UK,Copyright and IP Enforcement Directorate,HRG UK,426681164,-11.24,Not applicable
Department for Business Innovation and Skills,Intellectual Property Office,28/01/2015,Travel and subsistence UK,Business Support Directorate,HRG UK,426678366,2.57,Not applicable
Department for Business Innovation and Skills,Intellectual Property Office,28/01/2015,Travel and subsistence UK,Innovation Directorate,HRG UK,426742191,2.57,Not applicable
Department for Business Innovation and Skills,Intellectual Property Office,28/01/2015,Travel and subsistence UK,Innovation Directorate,HRG UK,426723306,2.57,Not applicable
Department for Business Innovation and Skills,Intellectual Property Office,28/01/2015,Travel and subsistence UK,Innovation Directorate,HRG UK,426742250,2.57,Not applicable
Department for Business Innovation and Skills,Intellectual Property Office,28/01/2015,Travel and subsistence UK,Innovation Directorate,HRG UK,426613294,2.57,Not applicable
Department for Business Innovation and Skills,Intellectual Property Office,28/01/2015,Travel and subsistence UK,Innovation Directorate,HRG UK,426723439,2.57,Not applicable
Department for Business Innovation and Skills,Intellectual Property Office,28/01/2015,Travel and subsistence UK,International Policy Directorate,HRG UK,426690844,2.57,Not applicable
Department for Business Innovation and Skills,Intellectual Property Office,28/01/2015,Travel and subsistence UK,International Policy Directorate,HRG UK,426722545,2.57,Not applicable
Department for Business Innovation and Skills,Intellectual Property Office,28/01/2015,Travel and subsistence UK,"People, Property and Services Directorate",HRG UK,426774094,2.57,Not applicable
Department for Business Innovation and Skills,Intellectual Property Office,28/01/2015,Travel and subsistence UK,International Policy Directorate,HRG UK,426776006,2.57,Not applicable
Department for Business Innovation and Skills,Intellectual Property Office,28/01/2015,Travel and subsistence UK,Innovation Directorate,HRG UK,426758423,2.57,Not applicable
Department for Business Innovation and Skills,Intellectual Property Office,28/01/2015,Travel and subsistence UK,Business Support Directorate,HRG UK,426813536,2.57,Not applicable
Department for Business Innovation and Skills,Intellectual Property Office,28/01/2015,Travel and subsistence UK,Business Support Directorate,HRG UK,426758847,2.57,Not applicable
Department for Business Innovation and Skills,Intellectual Property Office,28/01/2015,Travel and subsistence UK,Copyright and IP Enforcement Directorate,HRG UK,426723610,2.57,Not applicable
Department for Business Innovation and Skills,Intellectual Property Office,28/01/2015,Travel and subsistence UK,Trade Marks Directorate,HRG UK,426613217,2.57,Not applicable
Department for Business Innovation and Skills,Intellectual Property Office,28/01/2015,Travel and subsistence UK,Innovation Directorate,HRG UK,426723362,2.57,Not applicable
Department for Business Innovation and Skills,Intellectual Property Office,28/01/2015,Travel and subsistence UK,Innovation Directorate,HRG UK,426742208,2.57,Not applicable
Department for Business Innovation and Skills,Intellectual Property Office,28/01/2015,Travel and subsistence UK,Innovation Directorate,HRG UK,426742238,2.57,Not applicable
Department for Business Innovation and Skills,Intellectual Property Office,28/01/2015,Travel and subsistence UK,Innovation Directorate,HRG UK,426723481,2.57,Not applicable
Department for Business Innovation and Skills,Intellectual Property Office,28/01/2015,Travel and subsistence UK,Trade Marks Directorate,HRG UK,426613304,2.57,Not applicable
Department for Business Innovation and Skills,Intellectual Property Office,28/01/2015,Travel and subsistence UK,Innovation Directorate,HRG UK,426758817,2.57,Not applicable
Department for Business Innovation and Skills,Intellectual Property Office,28/01/2015,Travel and subsistence UK,Innovation Directorate,HRG UK,426813779,2.57,Not applicable
Department for Business Innovation and Skills,Intellectual Property Office,28/01/2015,Travel and subsistence UK,"People, Property and Services Directorate",HRG UK,426775336,2.57,Not applicable
Department for Business Innovation and Skills,Intellectual Property Office,28/01/2015,Travel and subsistence UK,Innovation Directorate,HRG UK,426814369,2.57,Not applicable
Department for Business Innovation and Skills,Intellectual Property Office,28/01/2015,Travel and subsistence UK,Innovation Directorate,HRG UK,426758256,2.57,Not applicable
Department for Business Innovation and Skills,Intellectual Property Office,28/01/2015,Travel and subsistence UK,Copyright and IP Enforcement Directorate,HRG UK,426742105,2.57,Not applicable
Department for Business Innovation and Skills,Intellectual Property Office,28/01/2015,Travel and subsistence UK,"People, Property and Services Directorate",HRG UK,426759557,2.57,Not applicable
Department for Business Innovation and Skills,Intellectual Property Office,28/01/2015,Travel and subsistence UK,Innovation Directorate,HRG UK,426527194,2.57,Not applicable
Department for Business Innovation and Skills,Intellectual Property Office,28/01/2015,Travel and subsistence UK,International Policy Directorate,HRG UK,426722547,2.57,Not applicable
Department for Business Innovation and Skills,Intellectual Property Office,28/01/2015,Travel and subsistence UK,International Policy Directorate,HRG UK,426690926,2.57,Not applicable
Department for Business Innovation and Skills,Intellectual Property Office,28/01/2015,Travel and subsistence UK,Trade Marks Directorate,HRG UK,426774907,2.57,Not applicable
Department for Business Innovation and Skills,Intellectual Property Office,28/01/2015,Travel and subsistence UK,Copyright and IP Enforcement Directorate,HRG UK,426694667,2.57,Not applicable
Department for Business Innovation and Skills,Intellectual Property Office,28/01/2015,Travel and subsistence UK,"People, Property and Services Directorate",HRG UK,426813826,2.57,Not applicable
Department for Business Innovation and Skills,Intellectual Property Office,28/01/2015,Travel and subsistence UK,Innovation Directorate,HRG UK,426814376,2.57,Not applicable
Department for Business Innovation and Skills,Intellectual Property Office,28/01/2015,Travel and subsistence UK,Innovation Directorate,HRG UK,426658232,2.57,Not applicable
Department for Business Innovation and Skills,Intellectual Property Office,28/01/2015,Travel and subsistence UK,International Policy Directorate,HRG UK,426722546,2.57,Not applicable
Department for Business Innovation and Skills,Intellectual Property Office,28/01/2015,Travel and subsistence UK,Copyright and IP Enforcement Directorate,HRG UK,426613285,2.57,Not applicable
Department for Business Innovation and Skills,Intellectual Property Office,28/01/2015,Travel and subsistence UK,Finance Directorate,HRG UK,426667929,2.57,Not applicable
Department for Business Innovation and Skills,Intellectual Property Office,28/01/2015,Travel and subsistence UK,Innovation Directorate,HRG UK,426723447,2.57,Not applicable
Department for Business Innovation and Skills,Intellectual Property Office,28/01/2015,Travel and subsistence UK,Innovation Directorate,HRG UK,426723461,2.57,Not applicable
Department for Business Innovation and Skills,Intellectual Property Office,28/01/2015,Travel and subsistence UK,International Policy Directorate,HRG UK,426722548,2.57,Not applicable
Department for Business Innovation and Skills,Intellectual Property Office,28/01/2015,Travel and subsistence UK,Copyright and IP Enforcement Directorate,HRG UK,426791871,2.57,Not applicable
Department for Business Innovation and Skills,Intellectual Property Office,28/01/2015,Travel and subsistence UK,Patents Directorate,HRG UK,426774956,2.57,Not applicable
Department for Business Innovation and Skills,Intellectual Property Office,28/01/2015,Travel and subsistence UK,Innovation Directorate,HRG UK,426775120,2.57,Not applicable
Department for Business Innovation and Skills,Intellectual Property Office,28/01/2015,Travel and subsistence UK,Innovation Directorate,HRG UK,426658224,2.57,Not applicable
Department for Business Innovation and Skills,Intellectual Property Office,28/01/2015,Travel and subsistence UK,International Policy Directorate,HRG UK,426814094,2.57,Not applicable
Department for Business Innovation and Skills,Intellectual Property Office,28/01/2015,Travel and subsistence UK,International Policy Directorate,HRG UK,426814247,2.57,Not applicable
Department for Business Innovation and Skills,Intellectual Property Office,28/01/2015,Travel and subsistence UK,Trade Marks Directorate,HRG UK,426758427,2.57,Not applicable
Department for Business Innovation and Skills,Intellectual Property Office,28/01/2015,Travel and subsistence UK,International Policy Directorate,HRG UK,426741449,2.57,Not applicable
Department for Business Innovation and Skills,Intellectual Property Office,28/01/2015,Travel and subsistence UK,International Policy Directorate,HRG UK,426813607,4.11,Not applicable
Department for Business Innovation and Skills,Intellectual Property Office,28/01/2015,Travel and subsistence UK,International Policy Directorate,HRG UK,426813620,4.11,Not applicable
Department for Business Innovation and Skills,Intellectual Property Office,28/01/2015,Travel and subsistence UK,Trade Marks Directorate,HRG UK,426639084,4.11,Not applicable
Department for Business Innovation and Skills,Intellectual Property Office,28/01/2015,Travel and subsistence UK,Copyright and IP Enforcement Directorate,HRG UK,426613181,4.11,Not applicable
Department for Business Innovation and Skills,Intellectual Property Office,28/01/2015,Travel and subsistence UK,International Policy Directorate,HRG UK,426722248,4.11,Not applicable
Department for Business Innovation and Skills,Intellectual Property Office,13/01/2015,Travel and subsistence UK,"People, Property and Services Directorate",Personal expenses name witheld,ER128321,4.25,Not applicable
Department for Business Innovation and Skills,Intellectual Property Office,26/01/2015,Travel and subsistence UK,Patents Directorate,Personal expenses name witheld,ER128587,4.5,Not applicable
Department for Business Innovation and Skills,Intellectual Property Office,28/01/2015,Travel and subsistence UK,Copyright and IP Enforcement Directorate,HRG UK,426613180,5.14,Not applicable
Department for Business Innovation and Skills,Intellectual Property Office,28/01/2015,Travel and subsistence UK,International Policy Directorate,HRG UK,426759542,5.14,Not applicable
Department for Business Innovation and Skills,Intellectual Property Office,28/01/2015,Travel and subsistence UK,Copyright and IP Enforcement Directorate,HRG UK,426814464,5.14,Not applicable
Department for Business Innovation and Skills,Intellectual Property Office,28/01/2015,Travel and subsistence UK,Copyright and IP Enforcement Directorate,HRG UK,426684159,5.14,Not applicable
Department for Business Innovation and Skills,Intellectual Property Office,28/01/2015,Travel and subsistence UK,Innovation Directorate,HRG UK,426722250,5.14,Not applicable
Department for Business Innovation and Skills,Intellectual Property Office,28/01/2015,Travel and subsistence UK,Copyright and IP Enforcement Directorate,HRG UK,426813623,5.14,Not applicable
Department for Business Innovation and Skills,Intellectual Property Office,28/01/2015,Travel and subsistence UK,International Policy Directorate,HRG UK,426741571,5.14,Not applicable
Department for Business Innovation and Skills,Intellectual Property Office,28/01/2015,Travel and subsistence UK,International Policy Directorate,HRG UK,426742919,5.65,Not applicable
Department for Business Innovation and Skills,Intellectual Property Office,28/01/2015,Travel and subsistence UK,Innovation Directorate,HRG UK,426742618,5.65,Not applicable
Department for Business Innovation and Skills,Intellectual Property Office,28/01/2015,Travel and subsistence UK,"People, Property and Services Directorate",HRG UK,426742898,5.65,Not applicable
Department for Business Innovation and Skills,Intellectual Property Office,28/01/2015,Travel and subsistence UK,Innovation Directorate,HRG UK,426742741,5.65,Not applicable
Department for Business Innovation and Skills,Intellectual Property Office,28/01/2015,Travel and subsistence UK,Innovation Directorate,HRG UK,426742722,5.65,Not applicable
Department for Business Innovation and Skills,Intellectual Property Office,28/01/2015,Travel and subsistence UK,Trade Marks Directorate,HRG UK,426792878,5.65,Not applicable
Department for Business Innovation and Skills,Intellectual Property Office,28/01/2015,Travel and subsistence UK,Innovation Directorate,HRG UK,426758853,5.65,Not applicable
Department for Business Innovation and Skills,Intellectual Property Office,28/01/2015,Travel and subsistence UK,Innovation Directorate,HRG UK,426758874,5.65,Not applicable
Department for Business Innovation and Skills,Intellectual Property Office,28/01/2015,Travel and subsistence UK,Trade Marks Directorate,HRG UK,426792876,5.65,Not applicable
Department for Business Innovation and Skills,Intellectual Property Office,28/01/2015,Travel and subsistence UK,"People, Property and Services Directorate",HRG UK,426819855,5.69,Not applicable
Department for Business Innovation and Skills,Intellectual Property Office,27/01/2015,Travel and subsistence UK,Copyright and IP Enforcement Directorate,Personal expenses name witheld,ER128744,6.5,Not applicable
Department for Business Innovation and Skills,Intellectual Property Office,26/01/2015,Travel and subsistence UK,Innovation Directorate,Pike Jamie,ER128692,6.5,Not applicable
Department for Business Innovation and Skills,Intellectual Property Office,12/01/2015,Travel and subsistence UK,"People, Property and Services Directorate",Personal expenses name witheld,ER128409,7,Not applicable
Department for Business Innovation and Skills,Intellectual Property Office,08/01/2015,Travel and subsistence UK,Innovation Directorate,Veezu Ltd T/A Dragon Taxis (Newport),2982,7.8,Not applicable
Department for Business Innovation and Skills,Intellectual Property Office,08/01/2015,Travel and subsistence UK,Finance Directorate,Veezu Ltd T/A Dragon Taxis (Newport),2982,7.8,Not applicable
Department for Business Innovation and Skills,Intellectual Property Office,08/01/2015,Travel and subsistence UK,Patents Directorate,Veezu Ltd T/A Dragon Taxis (Newport),2982,7.8,Not applicable
Department for Business Innovation and Skills,Intellectual Property Office,16/01/2015,Travel and subsistence UK,"People, Property and Services Directorate",Personal expenses name witheld,ER128492,8.1,Not applicable
Department for Business Innovation and Skills,Intellectual Property Office,28/01/2015,Travel and subsistence UK,Copyright and IP Enforcement Directorate,HRG UK,426527059,8.22,Not applicable
Department for Business Innovation and Skills,Intellectual Property Office,28/01/2015,Travel and subsistence UK,Copyright and IP Enforcement Directorate,HRG UK,426792076,8.22,Not applicable
Department for Business Innovation and Skills,Intellectual Property Office,28/01/2015,Travel and subsistence UK,Copyright and IP Enforcement Directorate,HRG UK,426527060,8.22,Not applicable
Department for Business Innovation and Skills,Intellectual Property Office,12/01/2015,Travel and subsistence UK,Central Support,Personal expenses name witheld,ER128405,8.4,Not applicable
Department for Business Innovation and Skills,Intellectual Property Office,29/01/2015,Travel and subsistence UK,"People, Property and Services Directorate",Personal expenses name witheld,ER128784,8.55,Not applicable
Department for Business Innovation and Skills,Intellectual Property Office,28/01/2015,Travel and subsistence UK,Business Support Directorate,HRG UK,426524416,9.27,Not applicable
Department for Business Innovation and Skills,Intellectual Property Office,28/01/2015,Travel and subsistence UK,Copyright and IP Enforcement Directorate,Personal expenses name witheld,ER128738,9.3,Not applicable
Department for Business Innovation and Skills,Intellectual Property Office,29/01/2015,Travel and subsistence UK,Business Support Directorate,Personal expenses name witheld,ER128714,9.3,Not applicable
Department for Business Innovation and Skills,Intellectual Property Office,29/01/2015,Travel and subsistence UK,Copyright and IP Enforcement Directorate,Personal expenses name witheld,ER128745,9.3,Not applicable
Department for Business Innovation and Skills,Intellectual Property Office,28/01/2015,Travel and subsistence UK,Copyright and IP Enforcement Directorate,Personal expenses name witheld,ER128725,9.3,Not applicable
Department for Business Innovation and Skills,Intellectual Property Office,28/01/2015,Travel and subsistence UK,Copyright and IP Enforcement Directorate,Personal expenses name witheld,ER128737,9.3,Not applicable
Department for Business Innovation and Skills,Intellectual Property Office,26/01/2015,Travel and subsistence UK,International Policy Directorate,Personal expenses name witheld,ER128634,9.3,Not applicable
Department for Business Innovation and Skills,Intellectual Property Office,20/01/2015,Travel and subsistence UK,International Policy Directorate,Personal expenses name witheld,ER128537,9.3,Not applicable
Department for Business Innovation and Skills,Intellectual Property Office,28/01/2015,Travel and subsistence UK,Finance Directorate,HRG UK,426661445,9.72,Not applicable
Department for Business Innovation and Skills,Intellectual Property Office,28/01/2015,Travel and subsistence UK,Copyright and IP Enforcement Directorate,HRG UK,426779855,9.72,Not applicable
Department for Business Innovation and Skills,Intellectual Property Office,28/01/2015,Travel and subsistence UK,Trade Marks Directorate,HRG UK,426784332,9.72,Not applicable
Department for Business Innovation and Skills,Intellectual Property Office,28/01/2015,Travel and subsistence UK,Business Support Directorate,HRG UK,426790800,9.72,Not applicable
Department for Business Innovation and Skills,Intellectual Property Office,30/01/2015,Travel and subsistence UK,Business Support Directorate,Personal expenses name witheld,ER128803,11.95,Not applicable
Department for Business Innovation and Skills,Intellectual Property Office,14/01/2015,Travel and subsistence UK,Business Support Directorate,Personal expenses name witheld,ER128447,12.6,Not applicable
Department for Business Innovation and Skills,Intellectual Property Office,27/01/2015,Travel and subsistence UK,Business Support Directorate,Personal expenses name witheld,ER128719,12.6,Not applicable
Department for Business Innovation and Skills,Intellectual Property Office,20/01/2015,Travel and subsistence UK,Business Support Directorate,Personal expenses name witheld,ER128540,12.6,Not applicable
Department for Business Innovation and Skills,Intellectual Property Office,22/01/2015,Travel and subsistence UK,Patents Directorate,Personal expenses name witheld,ER128611,12.75,Not applicable
Department for Business Innovation and Skills,Intellectual Property Office,28/01/2015,Travel and subsistence UK,"People, Property and Services Directorate",HRG UK,426819854,13.36,Not applicable
Department for Business Innovation and Skills,Intellectual Property Office,29/01/2015,Travel and subsistence UK,Patents Directorate,Personal expenses name witheld,ER128801,13.55,Not applicable
Department for Business Innovation and Skills,Intellectual Property Office,28/01/2015,Travel and subsistence UK,Copyright and IP Enforcement Directorate,Personal expenses name witheld,ER128728,13.55,Not applicable
Department for Business Innovation and Skills,Intellectual Property Office,21/01/2015,Travel and subsistence UK,Innovation Directorate,Personal expenses name witheld,ER128614,15.5,Not applicable
Department for Business Innovation and Skills,Intellectual Property Office,08/01/2015,Travel and subsistence UK,Copyright and IP Enforcement Directorate,Veezu Ltd T/A Dragon Taxis (Newport),2982,15.6,Not applicable
Department for Business Innovation and Skills,Intellectual Property Office,08/01/2015,Travel and subsistence UK,Copyright and IP Enforcement Directorate,Veezu Ltd T/A Dragon Taxis (Newport),2982,15.6,Not applicable
Department for Business Innovation and Skills,Intellectual Property Office,28/01/2015,Travel and subsistence UK,Central Support,HRG UK,426785275,15.86,Not applicable
Department for Business Innovation and Skills,Intellectual Property Office,08/01/2015,Travel and subsistence UK,"People, Property and Services Directorate",Veezu Ltd T/A Dragon Taxis (Newport),2982,16.4,Not applicable
Department for Business Innovation and Skills,Intellectual Property Office,30/01/2015,Travel and subsistence UK,Business Support Directorate,Personal expenses name witheld,ER128804,17,Not applicable
Department for Business Innovation and Skills,Intellectual Property Office,26/01/2015,Travel and subsistence UK,"People, Property and Services Directorate",Personal expenses name witheld,ER128696,17,Not applicable
Department for Business Innovation and Skills,Intellectual Property Office,23/01/2015,Travel and subsistence UK,International Policy Directorate,Personal expenses name witheld,ER128635,17.1,Not applicable
Department for Business Innovation and Skills,Intellectual Property Office,16/01/2015,Travel and subsistence UK,International Policy Directorate,Personal expenses name witheld,ER128477,17.2,Not applicable
Department for Business Innovation and Skills,Intellectual Property Office,28/01/2015,Travel and subsistence UK,International Policy Directorate,HRG UK,426642339,17.45,Not applicable
Department for Business Innovation and Skills,Intellectual Property Office,28/01/2015,Travel and subsistence UK,Copyright and IP Enforcement Directorate,HRG UK,426693735,17.45,Not applicable
Department for Business Innovation and Skills,Intellectual Property Office,28/01/2015,Travel and subsistence UK,International Policy Directorate,HRG UK,426642347,17.45,Not applicable
Department for Business Innovation and Skills,Intellectual Property Office,28/01/2015,Travel and subsistence UK,Copyright and IP Enforcement Directorate,HRG UK,426693733,17.45,Not applicable
Department for Business Innovation and Skills,Intellectual Property Office,28/01/2015,Travel and subsistence UK,International Policy Directorate,HRG UK,426796035,17.95,Not applicable
Department for Business Innovation and Skills,Intellectual Property Office,08/01/2015,Travel and subsistence UK,Trade Marks Directorate,Veezu Ltd T/A Dragon Taxis (Newport),2982,18.4,Not applicable
Department for Business Innovation and Skills,Intellectual Property Office,27/01/2015,Travel and subsistence UK,Business Support Directorate,Personal expenses name witheld,ER128722,18.6,Not applicable
Department for Business Innovation and Skills,Intellectual Property Office,27/01/2015,Travel and subsistence UK,Copyright and IP Enforcement Directorate,Personal expenses name witheld,ER127343,18.6,Not applicable
Department for Business Innovation and Skills,Intellectual Property Office,26/01/2015,Travel and subsistence UK,Innovation Directorate,Personal expenses name witheld,ER128511,18.6,Not applicable
Department for Business Innovation and Skills,Intellectual Property Office,12/01/2015,Travel and subsistence UK,Central Support,Personal expenses name witheld,ER128406,18.65,Not applicable
Department for Business Innovation and Skills,Intellectual Property Office,07/01/2015,Travel and subsistence UK,Innovation Directorate,Personal expenses name witheld,ER128306,18.8,Not applicable
Department for Business Innovation and Skills,Intellectual Property Office,16/01/2015,Travel and subsistence UK,Trade Marks Directorate,Personal expenses name witheld,ER128475,19.3,Not applicable
Department for Business Innovation and Skills,Intellectual Property Office,27/01/2015,Travel and subsistence UK,Copyright and IP Enforcement Directorate,Personal expenses name witheld,ER128724,19.7,Not applicable
Department for Business Innovation and Skills,Intellectual Property Office,08/01/2015,Travel and subsistence UK,Business Support Directorate,Veezu Ltd T/A Dragon Taxis (Newport),2982,20.4,Not applicable
Department for Business Innovation and Skills,Intellectual Property Office,13/01/2015,Travel and subsistence UK,"People, Property and Services Directorate",Personal expenses name witheld,ER127602,20.7,Not applicable
Department for Business Innovation and Skills,Intellectual Property Office,28/01/2015,Travel and subsistence UK,Patents Directorate,HRG UK,426524415,21.14,Not applicable
Department for Business Innovation and Skills,Intellectual Property Office,27/01/2015,Travel and subsistence UK,"People, Property and Services Directorate",Personal expenses name witheld,ER128735,21.3,Not applicable
Department for Business Innovation and Skills,Intellectual Property Office,28/01/2015,Travel and subsistence UK,"People, Property and Services Directorate",HRG UK,426773341,21.43,Not applicable
Department for Business Innovation and Skills,Intellectual Property Office,28/01/2015,Travel and subsistence UK,"People, Property and Services Directorate",HRG UK,426799398,21.43,Not applicable
Department for Business Innovation and Skills,Intellectual Property Office,28/01/2015,Travel and subsistence UK,"People, Property and Services Directorate",HRG UK,426800630,21.43,Not applicable
Department for Business Innovation and Skills,Intellectual Property Office,28/01/2015,Travel and subsistence UK,Copyright and IP Enforcement Directorate,HRG UK,426693737,21.44,Not applicable
Department for Business Innovation and Skills,Intellectual Property Office,28/01/2015,Travel and subsistence UK,International Policy Directorate,HRG UK,426795815,21.44,Not applicable
Department for Business Innovation and Skills,Intellectual Property Office,28/01/2015,Travel and subsistence UK,Copyright and IP Enforcement Directorate,HRG UK,426693731,21.44,Not applicable
Department for Business Innovation and Skills,Intellectual Property Office,28/01/2015,Travel and subsistence UK,Innovation Directorate,HRG UK,426710077,21.44,Not applicable
Department for Business Innovation and Skills,Intellectual Property Office,28/01/2015,Travel and subsistence UK,Copyright and IP Enforcement Directorate,HRG UK,426708230,21.44,Not applicable
Department for Business Innovation and Skills,Intellectual Property Office,28/01/2015,Travel and subsistence UK,Innovation Directorate,HRG UK,426819889,21.94,Not applicable
Department for Business Innovation and Skills,Intellectual Property Office,28/01/2015,Travel and subsistence UK,Innovation Directorate,HRG UK,426817909,21.94,Not applicable
Department for Business Innovation and Skills,Intellectual Property Office,22/01/2015,Travel and subsistence UK,Business Support Directorate,Personal expenses name witheld,ER128615,23.3,Not applicable
Department for Business Innovation and Skills,Intellectual Property Office,23/01/2015,Travel and subsistence UK,Business Support Directorate,Personal expenses name witheld,ER128633,24,Not applicable
Department for Business Innovation and Skills,Intellectual Property Office,13/01/2015,Travel and subsistence UK,Business Support Directorate,Personal expenses name witheld,ER128425,24,Not applicable
Department for Business Innovation and Skills,Intellectual Property Office,27/01/2015,Travel and subsistence UK,Business Support Directorate,Personal expenses name witheld,ER128717,24,Not applicable
Department for Business Innovation and Skills,Intellectual Property Office,28/01/2015,Travel and subsistence UK,Copyright and IP Enforcement Directorate,HRG UK,426777006,24.43,Not applicable
Department for Business Innovation and Skills,Intellectual Property Office,28/01/2015,Travel and subsistence UK,International Policy Directorate,HRG UK,426534972,24.53,Not applicable
Department for Business Innovation and Skills,Intellectual Property Office,08/01/2015,Travel and subsistence UK,Central Support,Veezu Ltd T/A Dragon Taxis (Newport),2982,24.6,Not applicable
Department for Business Innovation and Skills,Intellectual Property Office,28/01/2015,Travel and subsistence UK,Innovation Directorate,HRG UK,426648986,24.93,Not applicable
Department for Business Innovation and Skills,Intellectual Property Office,28/01/2015,Travel and subsistence UK,Business Support Directorate,HRG UK,426672149,25.02,Not applicable
Department for Business Innovation and Skills,Intellectual Property Office,06/01/2015,Travel and subsistence UK,International Policy Directorate,Personal expenses name witheld,ER128243,26.1,Not applicable
Department for Business Innovation and Skills,Intellectual Property Office,28/01/2015,Travel and subsistence UK,Copyright and IP Enforcement Directorate,HRG UK,426625214,28.82,Not applicable
Department for Business Innovation and Skills,Intellectual Property Office,08/01/2015,Travel and subsistence UK,Innovation Directorate,Veezu Ltd T/A Dragon Taxis (Newport),2982,29.4,Not applicable
Department for Business Innovation and Skills,Intellectual Property Office,28/01/2015,Travel and subsistence UK,International Policy Directorate,HRG UK,426819260,29.92,Not applicable
Department for Business Innovation and Skills,Intellectual Property Office,28/01/2015,Travel and subsistence UK,Copyright and IP Enforcement Directorate,HRG UK,426602779,30.51,Not applicable
Department for Business Innovation and Skills,Intellectual Property Office,28/01/2015,Travel and subsistence UK,"People, Property and Services Directorate",HRG UK,426534973,30.51,Not applicable
Department for Business Innovation and Skills,Intellectual Property Office,28/01/2015,Travel and subsistence UK,"People, Property and Services Directorate",HRG UK,426773368,31.1,Not applicable
Department for Business Innovation and Skills,Intellectual Property Office,28/01/2015,Travel and subsistence UK,"People, Property and Services Directorate",HRG UK,426796905,31.1,Not applicable
Department for Business Innovation and Skills,Intellectual Property Office,28/01/2015,Travel and subsistence UK,Copyright and IP Enforcement Directorate,HRG UK,426802696,32.01,Not applicable
Department for Business Innovation and Skills,Intellectual Property Office,28/01/2015,Travel and subsistence UK,"People, Property and Services Directorate",HRG UK,426787834,32.41,Not applicable
Department for Business Innovation and Skills,Intellectual Property Office,28/01/2015,Travel and subsistence UK,Innovation Directorate,HRG UK,426819307,32.41,Not applicable
Department for Business Innovation and Skills,Intellectual Property Office,28/01/2015,Travel and subsistence UK,International Policy Directorate,HRG UK,426642338,32.99,Not applicable
Department for Business Innovation and Skills,Intellectual Property Office,28/01/2015,Travel and subsistence UK,International Policy Directorate,HRG UK,426642346,32.99,Not applicable
Department for Business Innovation and Skills,Intellectual Property Office,28/01/2015,Travel and subsistence UK,International Policy Directorate,HRG UK,426726026,32.99,Not applicable
Department for Business Innovation and Skills,Intellectual Property Office,28/01/2015,Travel and subsistence UK,International Policy Directorate,HRG UK,426795814,32.99,Not applicable
Department for Business Innovation and Skills,Intellectual Property Office,29/01/2015,Travel and subsistence UK,Copyright and IP Enforcement Directorate,Personal expenses name witheld,ER128748,33.2,Not applicable
Department for Business Innovation and Skills,Intellectual Property Office,28/01/2015,Travel and subsistence UK,Innovation Directorate,HRG UK,426819888,33.99,Not applicable
Department for Business Innovation and Skills,Intellectual Property Office,28/01/2015,Travel and subsistence UK,International Policy Directorate,HRG UK,426625208,35.4,Not applicable
Department for Business Innovation and Skills,Intellectual Property Office,14/01/2015,Travel and subsistence UK,Innovation Directorate,Leasedrive Velo Rental Management Ltd,INV00070026,36,Not applicable
Department for Business Innovation and Skills,Intellectual Property Office,28/01/2015,Travel and subsistence UK,Trade Marks Directorate,HRG UK,426606798,36.01,Not applicable
Department for Business Innovation and Skills,Intellectual Property Office,28/01/2015,Travel and subsistence UK,Copyright and IP Enforcement Directorate,HRG UK,426693734,36.99,Not applicable
Department for Business Innovation and Skills,Intellectual Property Office,28/01/2015,Travel and subsistence UK,International Policy Directorate,HRG UK,426757058,37.09,Not applicable
Department for Business Innovation and Skills,Intellectual Property Office,28/01/2015,Travel and subsistence UK,"People, Property and Services Directorate",HRG UK,426773342,37.79,Not applicable
Department for Business Innovation and Skills,Intellectual Property Office,05/01/2015,Travel and subsistence UK,Innovation Directorate,Leasedrive Velo Rental Management Ltd,RHI01299105,37.94,Not applicable
Department for Business Innovation and Skills,Intellectual Property Office,02/01/2015,Travel and subsistence UK,Innovation Directorate,Leasedrive Velo Rental Management Ltd,RHI01299102,37.94,Not applicable
Department for Business Innovation and Skills,Intellectual Property Office,28/01/2015,Travel and subsistence UK,Copyright and IP Enforcement Directorate,Leasedrive Velo Rental Management Ltd,RHI01299104,37.94,Not applicable
Department for Business Innovation and Skills,Intellectual Property Office,28/01/2015,Travel and subsistence UK,Copyright and IP Enforcement Directorate,HRG UK,426727228,38.49,Not applicable
Department for Business Innovation and Skills,Intellectual Property Office,28/01/2015,Travel and subsistence UK,International Policy Directorate,HRG UK,426688270,38.49,Not applicable
Department for Business Innovation and Skills,Intellectual Property Office,28/01/2015,Travel and subsistence UK,Copyright and IP Enforcement Directorate,HRG UK,426767741,38.78,Not applicable
Department for Business Innovation and Skills,Intellectual Property Office,28/01/2015,Travel and subsistence UK,Copyright and IP Enforcement Directorate,HRG UK,426693738,38.78,Not applicable
Department for Business Innovation and Skills,Intellectual Property Office,28/01/2015,Travel and subsistence UK,International Policy Directorate,HRG UK,426750794,39.3,Not applicable
Department for Business Innovation and Skills,Intellectual Property Office,28/01/2015,Travel and subsistence UK,International Policy Directorate,HRG UK,426815932,39.3,Not applicable
Department for Business Innovation and Skills,Intellectual Property Office,28/01/2015,Travel and subsistence UK,International Policy Directorate,HRG UK,426750792,39.3,Not applicable
Department for Business Innovation and Skills,Intellectual Property Office,28/01/2015,Travel and subsistence UK,International Policy Directorate,HRG UK,426760854,39.3,Not applicable
Department for Business Innovation and Skills,Intellectual Property Office,28/01/2015,Travel and subsistence UK,Business Support Directorate,HRG UK,426799400,40.47,Not applicable
Department for Business Innovation and Skills,Intellectual Property Office,28/01/2015,Travel and subsistence UK,Copyright and IP Enforcement Directorate,HRG UK,426693736,40.47,Not applicable
Department for Business Innovation and Skills,Intellectual Property Office,28/01/2015,Travel and subsistence UK,Innovation Directorate,Leasedrive Velo Rental Management Ltd,RHI01263180,41.27,Not applicable
Department for Business Innovation and Skills,Intellectual Property Office,08/01/2015,Travel and subsistence UK,Innovation Directorate,Veezu Ltd T/A Dragon Taxis (Newport),2982,42.6,Not applicable
Department for Business Innovation and Skills,Intellectual Property Office,23/01/2015,Travel and subsistence UK,Patents Directorate,Leasedrive Velo Rental Management Ltd,RHI01259603,43.73,Not applicable
Department for Business Innovation and Skills,Intellectual Property Office,07/01/2015,Travel and subsistence UK,Patents Directorate,Leasedrive Velo Rental Management Ltd,RHI01299103,43.73,Not applicable
Department for Business Innovation and Skills,Intellectual Property Office,28/01/2015,Travel and subsistence UK,Patents Directorate,HRG UK,426528634,44.96,Not applicable
Department for Business Innovation and Skills,Intellectual Property Office,21/01/2015,Travel and subsistence UK,Business Support Directorate,Personal expenses name witheld,ER128582,45.01,Not applicable
Department for Business Innovation and Skills,Intellectual Property Office,28/01/2015,Travel and subsistence UK,Copyright and IP Enforcement Directorate,HRG UK,426680449,45.47,Not applicable
Department for Business Innovation and Skills,Intellectual Property Office,28/01/2015,Travel and subsistence UK,Finance Directorate,HRG UK,426662525,45.87,Not applicable
Department for Business Innovation and Skills,Intellectual Property Office,28/01/2015,Travel and subsistence UK,International Policy Directorate,HRG UK,426799773,46.46,Not applicable
Department for Business Innovation and Skills,Intellectual Property Office,28/01/2015,Travel and subsistence UK,International Policy Directorate,HRG UK,426524407,47.07,Not applicable
Department for Business Innovation and Skills,Intellectual Property Office,28/01/2015,Travel and subsistence UK,"People, Property and Services Directorate",HRG UK,426645657,47.28,Not applicable
Department for Business Innovation and Skills,Intellectual Property Office,28/01/2015,Travel and subsistence UK,"People, Property and Services Directorate",HRG UK,426646082,47.28,Not applicable
Department for Business Innovation and Skills,Intellectual Property Office,28/01/2015,Travel and subsistence UK,Innovation Directorate,HRG UK,426532059,47.57,Not applicable
Department for Business Innovation and Skills,Intellectual Property Office,28/01/2015,Travel and subsistence UK,Copyright and IP Enforcement Directorate,HRG UK,426693732,48.95,Not applicable
Department for Business Innovation and Skills,Intellectual Property Office,28/01/2015,Travel and subsistence UK,Copyright and IP Enforcement Directorate,HRG UK,426693730,48.95,Not applicable
Department for Business Innovation and Skills,Intellectual Property Office,28/01/2015,Travel and subsistence UK,International Policy Directorate,HRG UK,426815931,48.95,Not applicable
Department for Business Innovation and Skills,Intellectual Property Office,28/01/2015,Travel and subsistence UK,Copyright and IP Enforcement Directorate,HRG UK,41989,50,Not applicable
Department for Business Innovation and Skills,Intellectual Property Office,20/01/2015,Travel and subsistence UK,Innovation Directorate,Personal expenses name witheld,ER128586,50.4,Not applicable
Department for Business Innovation and Skills,Intellectual Property Office,28/01/2015,Travel and subsistence UK,Innovation Directorate,HRG UK,426529844,50.65,Not applicable
Department for Business Innovation and Skills,Intellectual Property Office,28/01/2015,Travel and subsistence UK,International Policy Directorate,HRG UK,426625210,50.86,Not applicable
Department for Business Innovation and Skills,Intellectual Property Office,28/01/2015,Travel and subsistence UK,International Policy Directorate,HRG UK,426796033,51.46,Not applicable
Department for Business Innovation and Skills,Intellectual Property Office,28/01/2015,Travel and subsistence UK,Finance Directorate,HRG UK,426819615,51.46,Not applicable
Department for Business Innovation and Skills,Intellectual Property Office,28/01/2015,Travel and subsistence UK,Business Support Directorate,HRG UK,426625216,52.85,Not applicable
Department for Business Innovation and Skills,Intellectual Property Office,28/01/2015,Travel and subsistence UK,"People, Property and Services Directorate",HRG UK,426625212,52.85,Not applicable
Department for Business Innovation and Skills,Intellectual Property Office,05/01/2015,Travel and subsistence UK,Innovation Directorate,Leasedrive Velo Rental Management Ltd,RHI01292194,53.02,Not applicable
Department for Business Innovation and Skills,Intellectual Property Office,28/01/2015,Travel and subsistence UK,Patents Directorate,HRG UK,426711697,53.86,Not applicable
Department for Business Innovation and Skills,Intellectual Property Office,28/01/2015,Travel and subsistence UK,Copyright and IP Enforcement Directorate,HRG UK,426805863,54.44,Not applicable
Department for Business Innovation and Skills,Intellectual Property Office,28/01/2015,Travel and subsistence UK,International Policy Directorate,HRG UK,426799772,54.44,Not applicable
Department for Business Innovation and Skills,Intellectual Property Office,28/01/2015,Travel and subsistence UK,Copyright and IP Enforcement Directorate,HRG UK,426727665,54.44,Not applicable
Department for Business Innovation and Skills,Intellectual Property Office,08/01/2015,Travel and subsistence UK,International Policy Directorate,Veezu Ltd T/A Dragon Taxis (Newport),2982,54.6,Not applicable
Department for Business Innovation and Skills,Intellectual Property Office,28/01/2015,Travel and subsistence UK,Copyright and IP Enforcement Directorate,HRG UK,426602781,54.85,Not applicable
Department for Business Innovation and Skills,Intellectual Property Office,28/01/2015,Travel and subsistence UK,Innovation Directorate,HRG UK,426817908,54.94,Not applicable
Department for Business Innovation and Skills,Intellectual Property Office,28/01/2015,Travel and subsistence UK,International Policy Directorate,HRG UK,426524410,56.43,Not applicable
Department for Business Innovation and Skills,Intellectual Property Office,28/01/2015,Travel and subsistence UK,Trade Marks Directorate,HRG UK,426743695,56.93,Not applicable
Department for Business Innovation and Skills,Intellectual Property Office,28/01/2015,Travel and subsistence UK,Copyright and IP Enforcement Directorate,HRG UK,426653454,57.44,Not applicable
Department for Business Innovation and Skills,Intellectual Property Office,28/01/2015,Travel and subsistence UK,International Policy Directorate,HRG UK,426821077,57.44,Not applicable
Department for Business Innovation and Skills,Intellectual Property Office,28/01/2015,Travel and subsistence UK,Trade Marks Directorate,HRG UK,426726027,57.44,Not applicable
Department for Business Innovation and Skills,Intellectual Property Office,28/01/2015,Travel and subsistence UK,Copyright and IP Enforcement Directorate,HRG UK,426528137,59.54,Not applicable
Department for Business Innovation and Skills,Intellectual Property Office,28/01/2015,Travel and subsistence UK,"People, Property and Services Directorate",HRG UK,426753572,59.93,Not applicable
Department for Business Innovation and Skills,Intellectual Property Office,09/01/2015,Travel and subsistence UK,Innovation Directorate,Personal expenses name witheld,ER128363,60.1,Not applicable
Department for Business Innovation and Skills,Intellectual Property Office,28/01/2015,Travel and subsistence UK,Copyright and IP Enforcement Directorate,HRG UK,426727510,61.43,Not applicable
Department for Business Innovation and Skills,Intellectual Property Office,28/01/2015,Travel and subsistence UK,Copyright and IP Enforcement Directorate,HRG UK,426625213,64.01,Not applicable
Department for Business Innovation and Skills,Intellectual Property Office,08/01/2015,Travel and subsistence UK,Innovation Directorate,Personal expenses name witheld,ER128341,65.18,Not applicable
Department for Business Innovation and Skills,Intellectual Property Office,28/01/2015,Travel and subsistence UK,Innovation Directorate,HRG UK,426710076,65.42,Not applicable
Department for Business Innovation and Skills,Intellectual Property Office,28/01/2015,Travel and subsistence UK,International Policy Directorate,HRG UK,426716521,65.42,Not applicable
Department for Business Innovation and Skills,Intellectual Property Office,28/01/2015,Travel and subsistence UK,International Policy Directorate,HRG UK,426760853,65.42,Not applicable
Department for Business Innovation and Skills,Intellectual Property Office,28/01/2015,Travel and subsistence UK,Copyright and IP Enforcement Directorate,HRG UK,426708226,65.92,Not applicable
Department for Business Innovation and Skills,Intellectual Property Office,28/01/2015,Travel and subsistence UK,Copyright and IP Enforcement Directorate,HRG UK,426805590,68.5,Not applicable
Department for Business Innovation and Skills,Intellectual Property Office,28/01/2015,Travel and subsistence UK,International Policy Directorate,HRG UK,426750791,69.51,Not applicable
Department for Business Innovation and Skills,Intellectual Property Office,28/01/2015,Travel and subsistence UK,International Policy Directorate,HRG UK,426750793,69.51,Not applicable
Department for Business Innovation and Skills,Intellectual Property Office,28/01/2015,Travel and subsistence UK,"People, Property and Services Directorate",HRG UK,426735198,69.51,Not applicable
Department for Business Innovation and Skills,Intellectual Property Office,28/01/2015,Travel and subsistence UK,International Policy Directorate,HRG UK,426757030,69.51,Not applicable
Department for Business Innovation and Skills,Intellectual Property Office,28/01/2015,Travel and subsistence UK,International Policy Directorate,HRG UK,426795386,69.9,Not applicable
Department for Business Innovation and Skills,Intellectual Property Office,28/01/2015,Travel and subsistence UK,International Policy Directorate,HRG UK,426795387,70.31,Not applicable
Department for Business Innovation and Skills,Intellectual Property Office,28/01/2015,Travel and subsistence UK,International Policy Directorate,HRG UK,426690702,71.9,Not applicable
Department for Business Innovation and Skills,Intellectual Property Office,28/01/2015,Travel and subsistence UK,Finance Directorate,HRG UK,426823711,72.9,Not applicable
Department for Business Innovation and Skills,Intellectual Property Office,28/01/2015,Travel and subsistence UK,Copyright and IP Enforcement Directorate,HRG UK,426727077,73.29,Not applicable
Department for Business Innovation and Skills,Intellectual Property Office,28/01/2015,Travel and subsistence UK,Copyright and IP Enforcement Directorate,HRG UK,426681768,75.77,Not applicable
Department for Business Innovation and Skills,Intellectual Property Office,28/01/2015,Travel and subsistence UK,International Policy Directorate,HRG UK,426797295,77.6,Not applicable
Department for Business Innovation and Skills,Intellectual Property Office,28/01/2015,Travel and subsistence UK,Copyright and IP Enforcement Directorate,HRG UK,426800453,78.38,Not applicable
Department for Business Innovation and Skills,Intellectual Property Office,28/01/2015,Travel and subsistence UK,Copyright and IP Enforcement Directorate,Personal expenses name witheld,ER128746,79.2,Not applicable
Department for Business Innovation and Skills,Intellectual Property Office,28/01/2015,Travel and subsistence UK,Innovation Directorate,HRG UK,426776875,79.28,Not applicable
Department for Business Innovation and Skills,Intellectual Property Office,28/01/2015,Travel and subsistence UK,International Policy Directorate,HRG UK,426797294,81.17,Not applicable
Department for Business Innovation and Skills,Intellectual Property Office,28/01/2015,Travel and subsistence UK,"People, Property and Services Directorate",HRG UK,426787942,82.28,Not applicable
Department for Business Innovation and Skills,Intellectual Property Office,12/01/2015,Travel and subsistence UK,Innovation Directorate,Personal expenses name witheld,ER128407,83.5,Not applicable
Department for Business Innovation and Skills,Intellectual Property Office,28/01/2015,Travel and subsistence UK,"People, Property and Services Directorate",HRG UK,426645656,84.16,Not applicable
Department for Business Innovation and Skills,Intellectual Property Office,28/01/2015,Travel and subsistence UK,"People, Property and Services Directorate",HRG UK,426646081,84.16,Not applicable
Department for Business Innovation and Skills,Intellectual Property Office,28/01/2015,Travel and subsistence UK,Copyright and IP Enforcement Directorate,HRG UK,426777005,85.86,Not applicable
Department for Business Innovation and Skills,Intellectual Property Office,28/01/2015,Travel and subsistence UK,"People, Property and Services Directorate",HRG UK,426787833,85.86,Not applicable
Department for Business Innovation and Skills,Intellectual Property Office,28/01/2015,Travel and subsistence UK,"People, Property and Services Directorate",HRG UK,426787941,85.86,Not applicable
Department for Business Innovation and Skills,Intellectual Property Office,28/01/2015,Travel and subsistence UK,Patents Directorate,HRG UK,426711695,85.86,Not applicable
Department for Business Innovation and Skills,Intellectual Property Office,28/01/2015,Travel and subsistence UK,Innovation Directorate,HRG UK,426530695,87.35,Not applicable
Department for Business Innovation and Skills,Intellectual Property Office,28/01/2015,Travel and subsistence UK,Copyright and IP Enforcement Directorate,HRG UK,426644764,87.35,Not applicable
Department for Business Innovation and Skills,Intellectual Property Office,28/01/2015,Travel and subsistence UK,International Policy Directorate,HRG UK,426650392,87.35,Not applicable
Department for Business Innovation and Skills,Intellectual Property Office,28/01/2015,Travel and subsistence UK,Innovation Directorate,HRG UK,426530707,87.35,Not applicable
Department for Business Innovation and Skills,Intellectual Property Office,05/01/2015,Travel and subsistence UK,Innovation Directorate,Leasedrive Velo Rental Management Ltd,RHI01296947,87.46,Not applicable
Department for Business Innovation and Skills,Intellectual Property Office,28/01/2015,Travel and subsistence UK,Copyright and IP Enforcement Directorate,HRG UK,426767420,89.34,Not applicable
Department for Business Innovation and Skills,Intellectual Property Office,28/01/2015,Travel and subsistence UK,Copyright and IP Enforcement Directorate,HRG UK,426717591,89.34,Not applicable
Department for Business Innovation and Skills,Intellectual Property Office,28/01/2015,Travel and subsistence UK,International Policy Directorate,HRG UK,426717390,89.34,Not applicable
Department for Business Innovation and Skills,Intellectual Property Office,28/01/2015,Travel and subsistence UK,Innovation Directorate,HRG UK,426744110,89.34,Not applicable
Department for Business Innovation and Skills,Intellectual Property Office,12/01/2015,Travel and subsistence UK,Copyright and IP Enforcement Directorate,Leasedrive Velo Rental Management Ltd,RHI01296950,89.66,Not applicable
Department for Business Innovation and Skills,Intellectual Property Office,14/01/2015,Travel and subsistence UK,International Policy Directorate,Personal expenses name witheld,ER128361,89.89,Not applicable
Department for Business Innovation and Skills,Intellectual Property Office,29/01/2015,Travel and subsistence UK,Business Support Directorate,Personal expenses name witheld,ER128712,90,Not applicable
Department for Business Innovation and Skills,Intellectual Property Office,06/01/2015,Travel and subsistence UK,Patents Directorate,Leasedrive Velo Rental Management Ltd,RHI01279412,90.91,Not applicable
Department for Business Innovation and Skills,Intellectual Property Office,28/01/2015,Travel and subsistence UK,Innovation Directorate,HRG UK,426524408,93.33,Not applicable
Department for Business Innovation and Skills,Intellectual Property Office,28/01/2015,Travel and subsistence UK,Innovation Directorate,HRG UK,426524409,93.33,Not applicable
Department for Business Innovation and Skills,Intellectual Property Office,28/01/2015,Travel and subsistence UK,International Policy Directorate,HRG UK,426710857,93.94,Not applicable
Department for Business Innovation and Skills,Intellectual Property Office,28/01/2015,Travel and subsistence UK,Patents Directorate,HRG UK,426761687,95.33,Not applicable
Department for Business Innovation and Skills,Intellectual Property Office,28/01/2015,Travel and subsistence UK,Patents Directorate,HRG UK,426744354,95.33,Not applicable
Department for Business Innovation and Skills,Intellectual Property Office,28/01/2015,Travel and subsistence UK,Innovation Directorate,HRG UK,426798200,95.33,Not applicable
Department for Business Innovation and Skills,Intellectual Property Office,20/01/2015,Travel and subsistence UK,Trade Marks Directorate,R E Annand,14NOV14LONDON,95.6,Not applicable
Department for Business Innovation and Skills,Intellectual Property Office,29/01/2015,Travel and subsistence UK,"People, Property and Services Directorate",Personal expenses name witheld,ER128780,95.7,Not applicable
Department for Business Innovation and Skills,Intellectual Property Office,05/01/2015,Travel and subsistence UK,Patents Directorate,Leasedrive Velo Rental Management Ltd,INV00069659,96,Not applicable
Department for Business Innovation and Skills,Intellectual Property Office,05/01/2015,Travel and subsistence UK,Trade Marks Directorate,R E Annand,51214,96.6,Not applicable
Department for Business Innovation and Skills,Intellectual Property Office,28/01/2015,Travel and subsistence UK,Copyright and IP Enforcement Directorate,HRG UK,426608214,98.32,Not applicable
Department for Business Innovation and Skills,Intellectual Property Office,28/01/2015,Travel and subsistence UK,Business Support Directorate,HRG UK,426524417,98.92,Not applicable
Department for Business Innovation and Skills,Intellectual Property Office,28/01/2015,Travel and subsistence UK,Copyright and IP Enforcement Directorate,HRG UK,426802697,100.23,Not applicable
Department for Business Innovation and Skills,Intellectual Property Office,28/01/2015,Travel and subsistence UK,International Policy Directorate,HRG UK,426723851,100.43,Not applicable
Department for Business Innovation and Skills,Intellectual Property Office,28/01/2015,Travel and subsistence UK,Innovation Directorate,HRG UK,426776873,100.82,Not applicable
Department for Business Innovation and Skills,Intellectual Property Office,28/01/2015,Travel and subsistence UK,International Policy Directorate,HRG UK,426734978,101.82,Not applicable
Department for Business Innovation and Skills,Intellectual Property Office,28/01/2015,Travel and subsistence UK,International Policy Directorate,HRG UK,426713829,101.82,Not applicable
Department for Business Innovation and Skills,Intellectual Property Office,28/01/2015,Travel and subsistence UK,International Policy Directorate,HRG UK,426524412,101.92,Not applicable
Department for Business Innovation and Skills,Intellectual Property Office,28/01/2015,Travel and subsistence UK,"People, Property and Services Directorate",HRG UK,426625211,101.92,Not applicable
Department for Business Innovation and Skills,Intellectual Property Office,28/01/2015,Travel and subsistence UK,Business Support Directorate,HRG UK,426799403,103.72,Not applicable
Department for Business Innovation and Skills,Intellectual Property Office,28/01/2015,Travel and subsistence UK,"People, Property and Services Directorate",HRG UK,426707902,103.82,Not applicable
Department for Business Innovation and Skills,Intellectual Property Office,28/01/2015,Travel and subsistence UK,"People, Property and Services Directorate",HRG UK,426707900,103.82,Not applicable
Department for Business Innovation and Skills,Intellectual Property Office,28/01/2015,Travel and subsistence UK,International Policy Directorate,HRG UK,426524406,103.91,Not applicable
Department for Business Innovation and Skills,Intellectual Property Office,28/01/2015,Travel and subsistence UK,Patents Directorate,HRG UK,426528635,104.22,Not applicable
Department for Business Innovation and Skills,Intellectual Property Office,28/01/2015,Travel and subsistence UK,International Policy Directorate,HRG UK,426524411,104.22,Not applicable
Department for Business Innovation and Skills,Intellectual Property Office,28/01/2015,Travel and subsistence UK,International Policy Directorate,HRG UK,426524413,104.22,Not applicable
Department for Business Innovation and Skills,Intellectual Property Office,28/01/2015,Travel and subsistence UK,Trade Marks Directorate,HRG UK,426606797,104.8,Not applicable
Department for Business Innovation and Skills,Intellectual Property Office,28/01/2015,Travel and subsistence UK,"People, Property and Services Directorate",HRG UK,426803572,105.91,Not applicable
Department for Business Innovation and Skills,Intellectual Property Office,28/01/2015,Travel and subsistence UK,Copyright and IP Enforcement Directorate,HRG UK,426752589,106,Not applicable
Department for Business Innovation and Skills,Intellectual Property Office,28/01/2015,Travel and subsistence UK,Copyright and IP Enforcement Directorate,HRG UK,426528136,106.3,Not applicable
Department for Business Innovation and Skills,Intellectual Property Office,28/01/2015,Travel and subsistence UK,"People, Property and Services Directorate",HRG UK,426707901,106.72,Not applicable
Department for Business Innovation and Skills,Intellectual Property Office,28/01/2015,Travel and subsistence UK,Trade Marks Directorate,HRG UK,426726028,106.72,Not applicable
Department for Business Innovation and Skills,Intellectual Property Office,28/01/2015,Travel and subsistence UK,"People, Property and Services Directorate",HRG UK,426707904,106.72,Not applicable
Department for Business Innovation and Skills,Intellectual Property Office,28/01/2015,Travel and subsistence UK,International Policy Directorate,HRG UK,426821078,106.72,Not applicable
Department for Business Innovation and Skills,Intellectual Property Office,28/01/2015,Travel and subsistence UK,Finance Directorate,HRG UK,426662526,106.72,Not applicable
Department for Business Innovation and Skills,Intellectual Property Office,28/01/2015,Travel and subsistence UK,International Policy Directorate,HRG UK,426535734,106.9,Not applicable
Department for Business Innovation and Skills,Intellectual Property Office,02/01/2015,Travel and subsistence UK,International Policy Directorate,Personal expenses name witheld,ER128195,107.15,Not applicable
Department for Business Innovation and Skills,Intellectual Property Office,28/01/2015,Travel and subsistence UK,Business Support Directorate,HRG UK,426625215,107.81,Not applicable
Department for Business Innovation and Skills,Intellectual Property Office,28/01/2015,Travel and subsistence UK,Finance Directorate,HRG UK,426819616,108.7,Not applicable
Department for Business Innovation and Skills,Intellectual Property Office,28/01/2015,Travel and subsistence UK,International Policy Directorate,HRG UK,426535735,109.2,Not applicable
Department for Business Innovation and Skills,Intellectual Property Office,28/01/2015,Travel and subsistence UK,Innovation Directorate,HRG UK,426819306,110.3,Not applicable
Department for Business Innovation and Skills,Intellectual Property Office,28/01/2015,Travel and subsistence UK,Finance Directorate,HRG UK,426823712,111.7,Not applicable
Department for Business Innovation and Skills,Intellectual Property Office,28/01/2015,Travel and subsistence UK,Business Support Directorate,HRG UK,426672151,111.7,Not applicable
Department for Business Innovation and Skills,Intellectual Property Office,21/01/2015,Travel and subsistence UK,Innovation Directorate,Personal expenses name witheld,ER128605,113.9,Not applicable
Department for Business Innovation and Skills,Intellectual Property Office,28/01/2015,Travel and subsistence UK,"People, Property and Services Directorate",HRG UK,426753573,115.18,Not applicable
Department for Business Innovation and Skills,Intellectual Property Office,28/01/2015,Travel and subsistence UK,Business Support Directorate,HRG UK,426702494,115.18,Not applicable
Department for Business Innovation and Skills,Intellectual Property Office,28/01/2015,Travel and subsistence UK,Business Support Directorate,HRG UK,426614086,115.18,Not applicable
Department for Business Innovation and Skills,Intellectual Property Office,28/01/2015,Travel and subsistence UK,Business Support Directorate,HRG UK,426813164,115.18,Not applicable
Department for Business Innovation and Skills,Intellectual Property Office,28/01/2015,Travel and subsistence UK,Business Support Directorate,HRG UK,426702672,115.18,Not applicable
Department for Business Innovation and Skills,Intellectual Property Office,28/01/2015,Travel and subsistence UK,Business Support Directorate,HRG UK,426797297,115.18,Not applicable
Department for Business Innovation and Skills,Intellectual Property Office,30/01/2015,Travel and subsistence UK,Copyright and IP Enforcement Directorate,Personal expenses name witheld,ER128823,116.05,Not applicable
Department for Business Innovation and Skills,Intellectual Property Office,02/01/2015,Travel and subsistence UK,Innovation Directorate,Leasedrive Velo Rental Management Ltd,RHI01296948,116.59,Not applicable
Department for Business Innovation and Skills,Intellectual Property Office,08/01/2015,Travel and subsistence UK,Copyright and IP Enforcement Directorate,Veezu Ltd T/A Dragon Taxis (Newport),2982,117,Not applicable
Department for Business Innovation and Skills,Intellectual Property Office,28/01/2015,Travel and subsistence UK,Business Support Directorate,HRG UK,426702671,118.77,Not applicable
Department for Business Innovation and Skills,Intellectual Property Office,28/01/2015,Travel and subsistence UK,Business Support Directorate,HRG UK,426813163,118.77,Not applicable
Department for Business Innovation and Skills,Intellectual Property Office,28/01/2015,Travel and subsistence UK,Business Support Directorate,HRG UK,426797296,118.77,Not applicable
Department for Business Innovation and Skills,Intellectual Property Office,28/01/2015,Travel and subsistence UK,Business Support Directorate,HRG UK,426614085,118.77,Not applicable
Department for Business Innovation and Skills,Intellectual Property Office,28/01/2015,Travel and subsistence UK,Business Support Directorate,HRG UK,426702493,118.77,Not applicable
Department for Business Innovation and Skills,Intellectual Property Office,20/01/2015,Travel and subsistence UK,Copyright and IP Enforcement Directorate,Personal expenses name witheld,ER128129,123.55,Not applicable
Department for Business Innovation and Skills,Intellectual Property Office,20/01/2015,Travel and subsistence UK,International Policy Directorate,Personal expenses name witheld,ER128446,123.7,Not applicable
Department for Business Innovation and Skills,Intellectual Property Office,28/01/2015,Travel and subsistence UK,Patents Directorate,Leasedrive Velo Rental Management Ltd,RHI01279417,124.8,Not applicable
Department for Business Innovation and Skills,Intellectual Property Office,12/01/2015,Travel and subsistence UK,Innovation Directorate,Personal expenses name witheld,ER128277,130.1,Not applicable
Department for Business Innovation and Skills,Intellectual Property Office,28/01/2015,Travel and subsistence UK,Copyright and IP Enforcement Directorate,HRG UK,426753021,132.21,Not applicable
Department for Business Innovation and Skills,Intellectual Property Office,13/01/2015,Travel and subsistence UK,International Policy Directorate,Personal expenses name witheld,ER128299,132.6,Not applicable
Department for Business Innovation and Skills,Intellectual Property Office,08/01/2015,Travel and subsistence UK,International Policy Directorate,Veezu Ltd T/A Dragon Taxis (Newport),2982,133.2,Not applicable
Department for Business Innovation and Skills,Intellectual Property Office,20/01/2015,Travel and subsistence UK,International Policy Directorate,Personal expenses name witheld,ER128536,134.46,Not applicable
Department for Business Innovation and Skills,Intellectual Property Office,26/01/2015,Travel and subsistence UK,Patents Directorate,J Markham,52745,143,Not applicable
Department for Business Innovation and Skills,Intellectual Property Office,29/01/2015,Travel and subsistence UK,International Policy Directorate,Personal expenses name witheld,ER128783,143.3,Not applicable
Department for Business Innovation and Skills,Intellectual Property Office,30/01/2015,Travel and subsistence UK,Innovation Directorate,Leasedrive Velo Rental Management Ltd,RHI01310960,145.37,Not applicable
Department for Business Innovation and Skills,Intellectual Property Office,27/01/2015,Travel and subsistence UK,Innovation Directorate,Personal expenses name witheld,ER128721,146.9,Not applicable
Department for Business Innovation and Skills,Intellectual Property Office,08/01/2015,Travel and subsistence UK,Innovation Directorate,Veezu Ltd T/A Dragon Taxis (Newport),2982,148.2,Not applicable
Department for Business Innovation and Skills,Intellectual Property Office,28/01/2015,Travel and subsistence UK,Innovation Directorate,RIFT Ltd,239096,148.31,Not applicable
Department for Business Innovation and Skills,Intellectual Property Office,29/01/2015,Travel and subsistence UK,Business Support Directorate,Personal expenses name witheld,ER128584,162.5,Not applicable
Department for Business Innovation and Skills,Intellectual Property Office,26/01/2015,Travel and subsistence UK,Innovation Directorate,Personal expenses name witheld,ER128718,163.15,Not applicable
Department for Business Innovation and Skills,Intellectual Property Office,28/01/2015,Travel and subsistence UK,Innovation Directorate,HRG UK,426745173,163.15,Not applicable
Department for Business Innovation and Skills,Intellectual Property Office,27/01/2015,Travel and subsistence UK,Innovation Directorate,Personal expenses name witheld,ER128491,165.19,Not applicable
Department for Business Innovation and Skills,Intellectual Property Office,28/01/2015,Travel and subsistence UK,Innovation Directorate,Personal expenses name witheld,ER128743,166,Not applicable
Department for Business Innovation and Skills,Intellectual Property Office,20/01/2015,Travel and subsistence UK,Copyright and IP Enforcement Directorate,Personal expenses name witheld,ER128562,166.05,Not applicable
Department for Business Innovation and Skills,Intellectual Property Office,28/01/2015,Travel and subsistence UK,Patents Directorate,Personal expenses name witheld,ER128275,169.65,Not applicable
Department for Business Innovation and Skills,Intellectual Property Office,16/01/2015,Travel and subsistence UK,Business Support Directorate,Personal expenses name witheld,ER128495,171.1,Not applicable
Department for Business Innovation and Skills,Intellectual Property Office,27/01/2015,Travel and subsistence UK,Innovation Directorate,Personal expenses name witheld,ER128618,172.7,Not applicable
Department for Business Innovation and Skills,Intellectual Property Office,27/01/2015,Travel and subsistence UK,Innovation Directorate,Personal expenses name witheld,ER128716,175.2,Not applicable
Department for Business Innovation and Skills,Intellectual Property Office,22/01/2015,Travel and subsistence UK,Finance Directorate,Personal expenses name witheld,ER128620,175.9,Not applicable
Department for Business Innovation and Skills,Intellectual Property Office,27/01/2015,Travel and subsistence UK,Innovation Directorate,Personal expenses name witheld,ER128723,177.5,Not applicable
Department for Business Innovation and Skills,Intellectual Property Office,20/01/2015,Travel and subsistence UK,Innovation Directorate,Personal expenses name witheld,ER128533,180.05,Not applicable
Department for Business Innovation and Skills,Intellectual Property Office,21/01/2015,Travel and subsistence UK,Innovation Directorate,Personal expenses name witheld,ER128604,181.8,Not applicable
Department for Business Innovation and Skills,Intellectual Property Office,20/01/2015,Travel and subsistence UK,Copyright and IP Enforcement Directorate,Personal expenses name witheld,ER128538,182.15,Not applicable
Department for Business Innovation and Skills,Intellectual Property Office,05/01/2015,Travel and subsistence UK,"People, Property and Services Directorate",Leasedrive Velo Rental Management Ltd,RHI01296945,187.1,Not applicable
Department for Business Innovation and Skills,Intellectual Property Office,20/01/2015,Travel and subsistence UK,Innovation Directorate,Personal expenses name witheld,ER128541,190.2,Not applicable
Department for Business Innovation and Skills,Intellectual Property Office,20/01/2015,Travel and subsistence UK,International Policy Directorate,Personal expenses name witheld,ER128581,192.7,Not applicable
Department for Business Innovation and Skills,Intellectual Property Office,22/01/2015,Travel and subsistence UK,"People, Property and Services Directorate",Personal expenses name witheld,ER128619,193.9,Not applicable
Department for Business Innovation and Skills,Intellectual Property Office,27/01/2015,Travel and subsistence UK,"People, Property and Services Directorate",Personal expenses name witheld,ER128496,193.9,Not applicable
Department for Business Innovation and Skills,Intellectual Property Office,16/01/2015,Travel and subsistence UK,Business Support Directorate,Personal expenses name witheld,ER128494,195.8,Not applicable
Department for Business Innovation and Skills,Intellectual Property Office,28/01/2015,Travel and subsistence UK,Patents Directorate,HRG UK,426640250,202.06,Not applicable
Department for Business Innovation and Skills,Intellectual Property Office,28/01/2015,Travel and subsistence UK,Patents Directorate,HRG UK,426640266,202.06,Not applicable
Department for Business Innovation and Skills,Intellectual Property Office,28/01/2015,Travel and subsistence UK,Patents Directorate,HRG UK,426710221,206.64,Not applicable
Department for Business Innovation and Skills,Intellectual Property Office,02/01/2015,Travel and subsistence UK,Patents Directorate,Personal expenses name witheld,ER128271,211,Not applicable
Department for Business Innovation and Skills,Intellectual Property Office,28/01/2015,Travel and subsistence UK,"People, Property and Services Directorate",HRG UK,426762197,211.02,Not applicable
Department for Business Innovation and Skills,Intellectual Property Office,28/01/2015,Travel and subsistence UK,"People, Property and Services Directorate",HRG UK,426762412,211.02,Not applicable
Department for Business Innovation and Skills,Intellectual Property Office,28/01/2015,Travel and subsistence UK,Innovation Directorate,HRG UK,426765487,211.02,Not applicable
Department for Business Innovation and Skills,Intellectual Property Office,28/01/2015,Travel and subsistence UK,Innovation Directorate,HRG UK,426765397,211.02,Not applicable
Department for Business Innovation and Skills,Intellectual Property Office,28/01/2015,Travel and subsistence UK,"People, Property and Services Directorate",HRG UK,426524414,212.01,Not applicable
Department for Business Innovation and Skills,Intellectual Property Office,28/01/2015,Travel and subsistence UK,International Policy Directorate,HRG UK,426625217,212.01,Not applicable
Department for Business Innovation and Skills,Intellectual Property Office,28/01/2015,Travel and subsistence UK,Business Support Directorate,HRG UK,426604525,213.62,Not applicable
Department for Business Innovation and Skills,Intellectual Property Office,28/01/2015,Travel and subsistence UK,Trade Marks Directorate,HRG UK,426747189,217.01,Not applicable
Department for Business Innovation and Skills,Intellectual Property Office,28/01/2015,Travel and subsistence UK,Trade Marks Directorate,HRG UK,426747372,217.01,Not applicable
Department for Business Innovation and Skills,Intellectual Property Office,28/01/2015,Travel and subsistence UK,Innovation Directorate,HRG UK,426653757,217.01,Not applicable
Department for Business Innovation and Skills,Intellectual Property Office,28/01/2015,Travel and subsistence UK,"People, Property and Services Directorate",HRG UK,426765398,217.01,Not applicable
Department for Business Innovation and Skills,Intellectual Property Office,28/01/2015,Travel and subsistence UK,International Policy Directorate,HRG UK,426723871,217.01,Not applicable
Department for Business Innovation and Skills,Intellectual Property Office,28/01/2015,Travel and subsistence UK,Innovation Directorate,HRG UK,426653872,217.01,Not applicable
Department for Business Innovation and Skills,Intellectual Property Office,28/01/2015,Travel and subsistence UK,International Policy Directorate,HRG UK,426815686,217.01,Not applicable
Department for Business Innovation and Skills,Intellectual Property Office,28/01/2015,Travel and subsistence UK,International Policy Directorate,HRG UK,426776409,217.01,Not applicable
Department for Business Innovation and Skills,Intellectual Property Office,28/01/2015,Travel and subsistence UK,Trade Marks Directorate,HRG UK,426735199,217.6,Not applicable
Department for Business Innovation and Skills,Intellectual Property Office,28/01/2015,Travel and subsistence UK,Copyright and IP Enforcement Directorate,HRG UK,426766937,217.6,Not applicable
Department for Business Innovation and Skills,Intellectual Property Office,28/01/2015,Travel and subsistence UK,Trade Marks Directorate,HRG UK,426736049,217.6,Not applicable
Department for Business Innovation and Skills,Intellectual Property Office,28/01/2015,Travel and subsistence UK,"People, Property and Services Directorate",HRG UK,426764910,217.6,Not applicable
Department for Business Innovation and Skills,Intellectual Property Office,28/01/2015,Travel and subsistence UK,"People, Property and Services Directorate",HRG UK,426764750,217.6,Not applicable
Department for Business Innovation and Skills,Intellectual Property Office,28/01/2015,Travel and subsistence UK,International Policy Directorate,HRG UK,426800627,221,Not applicable
Department for Business Innovation and Skills,Intellectual Property Office,28/01/2015,Travel and subsistence UK,International Policy Directorate,HRG UK,426688269,221,Not applicable
Department for Business Innovation and Skills,Intellectual Property Office,28/01/2015,Travel and subsistence UK,Business Support Directorate,HRG UK,426745478,221,Not applicable
Department for Business Innovation and Skills,Intellectual Property Office,28/01/2015,Travel and subsistence UK,Innovation Directorate,HRG UK,426733245,221.1,Not applicable
Department for Business Innovation and Skills,Intellectual Property Office,28/01/2015,Travel and subsistence UK,Business Support Directorate,HRG UK,426625218,221.99,Not applicable
Department for Business Innovation and Skills,Intellectual Property Office,28/01/2015,Travel and subsistence UK,Finance Directorate,HRG UK,426634847,221.99,Not applicable
Department for Business Innovation and Skills,Intellectual Property Office,28/01/2015,Travel and subsistence UK,Copyright and IP Enforcement Directorate,HRG UK,426625209,221.99,Not applicable
Department for Business Innovation and Skills,Intellectual Property Office,28/01/2015,Travel and subsistence UK,Patents Directorate,HRG UK,426524418,221.99,Not applicable
Department for Business Innovation and Skills,Intellectual Property Office,28/01/2015,Travel and subsistence UK,International Policy Directorate,HRG UK,426614872,221.99,Not applicable
Department for Business Innovation and Skills,Intellectual Property Office,28/01/2015,Travel and subsistence UK,Patents Directorate,HRG UK,426606643,221.99,Not applicable
Department for Business Innovation and Skills,Intellectual Property Office,28/01/2015,Travel and subsistence UK,International Policy Directorate,HRG UK,426797293,222.5,Not applicable
Department for Business Innovation and Skills,Intellectual Property Office,28/01/2015,Travel and subsistence UK,Patents Directorate,HRG UK,426800629,226.98,Not applicable
Department for Business Innovation and Skills,Intellectual Property Office,28/01/2015,Travel and subsistence UK,Trade Marks Directorate,HRG UK,426750378,226.98,Not applicable
Department for Business Innovation and Skills,Intellectual Property Office,28/01/2015,Travel and subsistence UK,"People, Property and Services Directorate",HRG UK,426757091,226.98,Not applicable
Department for Business Innovation and Skills,Intellectual Property Office,28/01/2015,Travel and subsistence UK,Innovation Directorate,HRG UK,426776589,226.98,Not applicable
Department for Business Innovation and Skills,Intellectual Property Office,28/01/2015,Travel and subsistence UK,Trade Marks Directorate,HRG UK,426763465,226.98,Not applicable
Department for Business Innovation and Skills,Intellectual Property Office,28/01/2015,Travel and subsistence UK,Patents Directorate,HRG UK,426800826,226.98,Not applicable
Department for Business Innovation and Skills,Intellectual Property Office,28/01/2015,Travel and subsistence UK,Patents Directorate,HRG UK,426707251,226.98,Not applicable
Department for Business Innovation and Skills,Intellectual Property Office,28/01/2015,Travel and subsistence UK,"People, Property and Services Directorate",HRG UK,426777252,227.57,Not applicable
Department for Business Innovation and Skills,Intellectual Property Office,09/01/2015,Travel and subsistence UK,Copyright and IP Enforcement Directorate,Personal expenses name witheld,ER128384,230.3,Not applicable
Department for Business Innovation and Skills,Intellectual Property Office,20/01/2015,Travel and subsistence UK,Innovation Directorate,Personal expenses name witheld,ER128531,254.15,Not applicable
Department for Business Innovation and Skills,Intellectual Property Office,21/01/2015,Travel and subsistence UK,Innovation Directorate,Personal expenses name witheld,ER128603,265.04,Not applicable
Department for Business Innovation and Skills,Intellectual Property Office,02/01/2015,Travel and subsistence UK,Innovation Directorate,Leasedrive Velo Rental Management Ltd,RHI01296946,269.46,Not applicable
Department for Business Innovation and Skills,Intellectual Property Office,20/01/2015,Travel and subsistence UK,"People, Property and Services Directorate",Personal expenses name witheld,ER128050,300.5,Not applicable
Department for Business Innovation and Skills,Intellectual Property Office,20/01/2015,Travel and subsistence UK,Patents Directorate,Personal expenses name witheld,ER128493,305.5,Not applicable
Department for Business Innovation and Skills,Intellectual Property Office,02/01/2015,Travel and subsistence UK,Innovation Directorate,Personal expenses name witheld,ER128025,306.85,Not applicable
Department for Business Innovation and Skills,Intellectual Property Office,13/01/2015,Travel and subsistence UK,Copyright and IP Enforcement Directorate,Personal expenses name witheld,ER128304,325.2,Not applicable
Department for Business Innovation and Skills,Intellectual Property Office,30/01/2015,Travel and subsistence UK,Innovation Directorate,Personal expenses name witheld,ER128842,365.05,Not applicable
Department for Business Innovation and Skills,Intellectual Property Office,20/01/2015,Travel and subsistence UK,International Policy Directorate,Personal expenses name witheld,ER128245,371.75,Not applicable
Department for Business Innovation and Skills,Intellectual Property Office,02/01/2015,Travel and subsistence UK,Patents Directorate,Personal expenses name witheld,ER127341,381.3,Not applicable
Department for Business Innovation and Skills,Intellectual Property Office,27/01/2015,Travel and subsistence UK,Copyright and IP Enforcement Directorate,Personal expenses name witheld,ER128726,397.78,Not applicable
Department for Business Innovation and Skills,Intellectual Property Office,26/01/2015,Travel and subsistence UK,Innovation Directorate,Personal expenses name witheld,ER128720,425.6,Not applicable
Department for Business Innovation and Skills,Intellectual Property Office,06/01/2015,Travel and subsistence UK,International Policy Directorate,Personal expenses name witheld,ER128193,477.9,Not applicable
Department for Business Innovation and Skills,Intellectual Property Office,27/01/2015,Travel and subsistence UK,Business Support Directorate,Leasedrive Velo Rental Management Ltd,RHI01259605,508.37,Not applicable
Department for Business Innovation and Skills,Intellectual Property Office,30/01/2015,Travel and subsistence UK,Business Support Directorate,Leasedrive Velo Rental Management Ltd,RHI01277560,508.37,Not applicable
Department for Business Innovation and Skills,Intellectual Property Office,12/01/2015,Travel and subsistence UK,Patents Directorate,Brians Bus,219,660,Not applicable
Department for Business Innovation and Skills,Intellectual Property Office,21/01/2015,Travel and subsistence UK,Business Support Directorate,Personal expenses name witheld,ER128561,717.16,Not applicable
Department for Business Innovation and Skills,Intellectual Property Office,27/01/2015,Travel and subsistence UK,Business Support Directorate,Personal expenses name witheld,ER128297,722.9,Not applicable
Department for Business Innovation and Skills,Intellectual Property Office,29/01/2015,Travel and subsistence UK,International Policy Directorate,Personal expenses name witheld,ER128747,834.04,Not applicable
Department for Business Innovation and Skills,Intellectual Property Office,29/01/2015,Travel and subsistence UK,Business Support Directorate,Personal expenses name witheld,ER128559,1512.73,Not applicable
Department for Business Innovation and Skills,Intellectual Property Office,28/01/2015,Travel and subsistence Overseas,International Policy Directorate,HRG UK,689062597,-1532.8,Not applicable
Department for Business Innovation and Skills,Intellectual Property Office,28/01/2015,Travel and subsistence Overseas,Finance Directorate,HRG UK,426619950,-146.23,Not applicable
Department for Business Innovation and Skills,Intellectual Property Office,28/01/2015,Travel and subsistence Overseas,International Policy Directorate,HRG UK,426619951,-141.71,Not applicable
Department for Business Innovation and Skills,Intellectual Property Office,28/01/2015,Travel and subsistence Overseas,Trade Marks Directorate,HRG UK,426775256,2.57,Not applicable
Department for Business Innovation and Skills,Intellectual Property Office,28/01/2015,Travel and subsistence Overseas,Innovation Directorate,HRG UK,426758932,2.57,Not applicable
Department for Business Innovation and Skills,Intellectual Property Office,28/01/2015,Travel and subsistence Overseas,International Policy Directorate,HRG UK,426624755,2.57,Not applicable
Department for Business Innovation and Skills,Intellectual Property Office,28/01/2015,Travel and subsistence Overseas,Central Support,HRG UK,426646281,25.68,Not applicable
Department for Business Innovation and Skills,Intellectual Property Office,20/01/2015,Travel and subsistence Overseas,International Policy Directorate,Personal expenses name witheld,ER128535,49.52,Not applicable
Department for Business Innovation and Skills,Intellectual Property Office,28/01/2015,Travel and subsistence Overseas,Copyright and IP Enforcement Directorate,HRG UK,426601702,98.6,Not applicable
Department for Business Innovation and Skills,Intellectual Property Office,27/01/2015,Travel and subsistence Overseas,Copyright and IP Enforcement Directorate,Personal expenses name witheld,ER128695,104.22,Not applicable
Department for Business Innovation and Skills,Intellectual Property Office,20/01/2015,Travel and subsistence Overseas,International Policy Directorate,Personal expenses name witheld,ER128579,133.13,Not applicable
Department for Business Innovation and Skills,Intellectual Property Office,28/01/2015,Travel and subsistence Overseas,Copyright and IP Enforcement Directorate,HRG UK,426770048,148.63,Not applicable
Department for Business Innovation and Skills,Intellectual Property Office,13/01/2015,Travel and subsistence Overseas,Copyright and IP Enforcement Directorate,Personal expenses name witheld,ER128305,162.3,Not applicable
Department for Business Innovation and Skills,Intellectual Property Office,28/01/2015,Travel and subsistence Overseas,Copyright and IP Enforcement Directorate,Personal expenses name witheld,ER128727,186.99,Not applicable
Department for Business Innovation and Skills,Intellectual Property Office,05/01/2015,Travel and subsistence Overseas,International Policy Directorate,Personal expenses name witheld,ER128273,191.61,Not applicable
Department for Business Innovation and Skills,Intellectual Property Office,07/01/2015,Travel and subsistence Overseas,Copyright and IP Enforcement Directorate,Personal expenses name witheld,ER127258,227.18,Not applicable
Department for Business Innovation and Skills,Intellectual Property Office,28/01/2015,Travel and subsistence Overseas,International Policy Directorate,HRG UK,426753016,229.74,Not applicable
Department for Business Innovation and Skills,Intellectual Property Office,30/01/2015,Travel and subsistence Overseas,Change Program,Personal expenses name witheld,ER128671,238.7,Not applicable
Department for Business Innovation and Skills,Intellectual Property Office,27/01/2015,Travel and subsistence Overseas,Business Support Directorate,Personal expenses name witheld,ER128651,257.63,Not applicable
Department for Business Innovation and Skills,Intellectual Property Office,26/01/2015,Travel and subsistence Overseas,Patents Directorate,Personal expenses name witheld,ER128617,260.15,Not applicable
Department for Business Innovation and Skills,Intellectual Property Office,07/01/2015,Travel and subsistence Overseas,International Policy Directorate,Personal expenses name witheld,ER128300,262.99,Not applicable
Department for Business Innovation and Skills,Intellectual Property Office,21/01/2015,Travel and subsistence Overseas,Trade Marks Directorate,Personal expenses name witheld,ER128606,264.62,Not applicable
Department for Business Innovation and Skills,Intellectual Property Office,05/01/2015,Travel and subsistence Overseas,Finance Directorate,Personal expenses name witheld,ER128278,267.64,Not applicable
Department for Business Innovation and Skills,Intellectual Property Office,13/01/2015,Travel and subsistence Overseas,Central Support,Personal expenses name witheld,ER128248,304.93,Not applicable
Department for Business Innovation and Skills,Intellectual Property Office,28/01/2015,Travel and subsistence Overseas,Patents Directorate,HRG UK,426707089,337.33,Not applicable
Department for Business Innovation and Skills,Intellectual Property Office,22/01/2015,Travel and subsistence Overseas,Patents Directorate,Personal expenses name witheld,ER128613,345.31,Not applicable
Department for Business Innovation and Skills,Intellectual Property Office,27/01/2015,Travel and subsistence Overseas,International Policy Directorate,Personal expenses name witheld,ER128715,372.63,Not applicable
Department for Business Innovation and Skills,Intellectual Property Office,28/01/2015,Travel and subsistence Overseas,International Policy Directorate,HRG UK,426688477,447.2,Not applicable
Department for Business Innovation and Skills,Intellectual Property Office,02/01/2015,Travel and subsistence Overseas,Patents Directorate,Personal expenses name witheld,ER128270,478.34,Not applicable
Department for Business Innovation and Skills,Intellectual Property Office,05/01/2015,Travel and subsistence Overseas,Business Support Directorate,Leasedrive Velo Rental Management Ltd,RHI01295406,508.37,Not applicable
Department for Business Innovation and Skills,Intellectual Property Office,28/01/2015,Travel and subsistence Overseas,Copyright and IP Enforcement Directorate,HRG UK,426834576,531.1,Not applicable
Department for Business Innovation and Skills,Intellectual Property Office,28/01/2015,Travel and subsistence Overseas,Copyright and IP Enforcement Directorate,HRG UK,426836161,531.1,Not applicable
Department for Business Innovation and Skills,Intellectual Property Office,28/01/2015,Travel and subsistence Overseas,Copyright and IP Enforcement Directorate,HRG UK,426832000,531.1,Not applicable
Department for Business Innovation and Skills,Intellectual Property Office,28/01/2015,Travel and subsistence Overseas,Copyright and IP Enforcement Directorate,Personal expenses name witheld,ER128740,600.45,Not applicable
Department for Business Innovation and Skills,Intellectual Property Office,28/01/2015,Travel and subsistence Overseas,Trade Marks Directorate,HRG UK,426764371,602.23,Not applicable
Department for Business Innovation and Skills,Intellectual Property Office,05/01/2015,Travel and subsistence Overseas,Business Support Directorate,Personal expenses name witheld,ER128183,630.19,Not applicable
Department for Business Innovation and Skills,Intellectual Property Office,28/01/2015,Travel and subsistence Overseas,Patents Directorate,Personal expenses name witheld,ER128274,673.97,Not applicable
Department for Business Innovation and Skills,Intellectual Property Office,13/01/2015,Travel and subsistence Overseas,Change Program,Personal expenses name witheld,ER127890,698.52,Not applicable
Department for Business Innovation and Skills,Intellectual Property Office,28/01/2015,Travel and subsistence Overseas,Patents Directorate,Personal expenses name witheld,ER128276,824.37,Not applicable
Department for Business Innovation and Skills,Intellectual Property Office,22/01/2015,Travel and subsistence Overseas,International Policy Directorate,Personal expenses name witheld,ER128616,1946.26,Not applicable
Department for Business Innovation and Skills,Intellectual Property Office,28/01/2015,Travel and subsistence Overseas,International Policy Directorate,HRG UK,426766236,2119.02,Not applicable
Department for Business Innovation and Skills,Intellectual Property Office,05/01/2015,Travel and subsistence Overseas,International Policy Directorate,Personal expenses name witheld,ER125457,2881.04,Not applicable
Department for Business Innovation and Skills,Intellectual Property Office,20/01/2015,Accommodation charges,"People, Property and Services Directorate",First Investments Ltd,68109,9795.58,Not applicable
Department for Business Innovation and Skills,Intellectual Property Office,12/01/2015,Accommodation charges,"People, Property and Services Directorate",Caerphilly County Borough Council,510317691-2014/15,28143.5,Not applicable
Department for Business Innovation and Skills,Intellectual Property Office,07/01/2015,Security Guards,"People, Property and Services Directorate",Mitie Facilities Services Ltd,100-90878839,1878.19,Not applicable
Department for Business Innovation and Skills,Intellectual Property Office,13/01/2015,Office Cleaning,"People, Property and Services Directorate",Glasdon UK Ltd,PF4798 1,1413.96,Not applicable
Department for Business Innovation and Skills,Intellectual Property Office,20/01/2015,Furniture & Fittings,"People, Property and Services Directorate",Senator International Ltd,S01214362,156.6,Not applicable
Department for Business Innovation and Skills,Intellectual Property Office,20/01/2015,Furniture & Fittings,"People, Property and Services Directorate",Senator International Ltd,S01214755,196.06,Not applicable
Department for Business Innovation and Skills,Intellectual Property Office,21/01/2015,Furniture & Fittings,"People, Property and Services Directorate",Senator International Ltd,S01214361,215.54,Not applicable
Department for Business Innovation and Skills,Intellectual Property Office,21/01/2015,Furniture & Fittings,"People, Property and Services Directorate",Senator International Ltd,S01214363,357.66,Not applicable
Department for Business Innovation and Skills,Intellectual Property Office,22/01/2015,Furniture & Fittings,"People, Property and Services Directorate",Senator International Ltd,S01215905,357.66,Not applicable
Department for Business Innovation and Skills,Intellectual Property Office,21/01/2015,Furniture & Fittings,"People, Property and Services Directorate",Senator International Ltd,S01215906,1047.6,Not applicable
Department for Business Innovation and Skills,Intellectual Property Office,29/01/2015,Furniture & Fittings,IMPROVE Project,Senator International Ltd,S01215268,48289.61,Not applicable
Department for Business Innovation and Skills,Intellectual Property Office,12/01/2015,Fuel &Utilities,"People, Property and Services Directorate",EDF Energy 1 Ltd,17647074-0053,1577.81,Not applicable
Department for Business Innovation and Skills,Intellectual Property Office,20/01/2015,Fuel &Utilities,"People, Property and Services Directorate",Corona Energy,9825807,2810.09,Not applicable
Department for Business Innovation and Skills,Intellectual Property Office,20/01/2015,Fuel &Utilities,"People, Property and Services Directorate",Corona Energy,9825808,3837.07,Not applicable
Department for Business Innovation and Skills,Intellectual Property Office,12/01/2015,Fuel &Utilities,"People, Property and Services Directorate",EDF Energy 1 Ltd,11555683-02JAN15,31721.02,Not applicable
Department for Business Innovation and Skills,Intellectual Property Office,22/01/2015,Minor Buiding Works &Maintenance,IMPROVE Project,Applied Products,514567,120,Not applicable
Department for Business Innovation and Skills,Intellectual Property Office,23/01/2015,Minor Buiding Works &Maintenance,"People, Property and Services Directorate",Applied Products,514556,1380,Not applicable
Department for Business Innovation and Skills,Intellectual Property Office,23/01/2015,Minor Buiding Works &Maintenance,IMPROVE Project,Styles & Wood Ltd,CSI0001766,293991.46,Not applicable
Department for Business Innovation and Skills,Intellectual Property Office,09/01/2015,Postage,"People, Property and Services Directorate",Royal Mail,9048904772,7.96,Not applicable
Department for Business Innovation and Skills,Intellectual Property Office,21/01/2015,Postage,"People, Property and Services Directorate",Parcelforce Worldwide,9048967915,662.23,Not applicable
Department for Business Innovation and Skills,Intellectual Property Office,22/01/2015,Postage,"People, Property and Services Directorate",Neopost Ltd,N3026121-21JAN15,2000,Not applicable
Department for Business Innovation and Skills,Intellectual Property Office,22/01/2015,Postage,"People, Property and Services Directorate",Neopost Ltd,N1207751-21JAN15,10000,Not applicable
Department for Business Innovation and Skills,Intellectual Property Office,23/01/2015,Courier service,"People, Property and Services Directorate",Rico Logistics Ltd,723734,50.74,Not applicable
Department for Business Innovation and Skills,Intellectual Property Office,07/01/2015,Courier service,International Policy Directorate,Rico Logistics Ltd,720756,89.22,Not applicable
Department for Business Innovation and Skills,Intellectual Property Office,05/01/2015,Van Delivery Service,"People, Property and Services Directorate",Allstar Business Solutions Ltd,E2004008781,6.99,Not applicable
Department for Business Innovation and Skills,Intellectual Property Office,20/01/2015,Van Delivery Service,"People, Property and Services Directorate",Allstar Business Solutions Ltd,E2004109440,40,Not applicable
Department for Business Innovation and Skills,Intellectual Property Office,05/01/2015,Van Delivery Service,"People, Property and Services Directorate",Allstar Business Solutions Ltd,E2004041616,60.03,Not applicable
Department for Business Innovation and Skills,Intellectual Property Office,05/01/2015,Van Delivery Service,"People, Property and Services Directorate",Allstar Business Solutions Ltd,E2003976635,105,Not applicable
Department for Business Innovation and Skills,Intellectual Property Office,14/01/2015,Van Delivery Service,"People, Property and Services Directorate",CitySprint UK Ltd,1186798,1973,Not applicable
Department for Business Innovation and Skills,Intellectual Property Office,02/01/2015,Telephone Rentals and Call Charges,Business Support Directorate,Vodafone Corporate Ltd,13327613,1.57,Not applicable
Department for Business Innovation and Skills,Intellectual Property Office,12/01/2015,Telephone Rentals and Call Charges,Business Support Directorate,O2 UK Ltd,69900199,6.3,Not applicable
Department for Business Innovation and Skills,Intellectual Property Office,21/01/2015,Telephone Rentals and Call Charges,Business Support Directorate,Virgin Media,740075701001-16JAN15,36.02,Not applicable
Department for Business Innovation and Skills,Intellectual Property Office,07/01/2015,Telephone Rentals and Call Charges,Business Support Directorate,Virgin Media,439936401001-02JAN15,37.73,Not applicable
Department for Business Innovation and Skills,Intellectual Property Office,13/01/2015,Telephone Rentals and Call Charges,Business Support Directorate,Virgin Media,441626201001-09JAN15,40.91,Not applicable
Department for Business Innovation and Skills,Intellectual Property Office,28/01/2015,Telephone Rentals and Call Charges,Business Support Directorate,Virgin Media,435496901001-15JAN15,46.8,Not applicable
Department for Business Innovation and Skills,Intellectual Property Office,29/01/2015,Telephone Rentals and Call Charges,Business Support Directorate,Virgin Media,441112301001-23JAN15,46.8,Not applicable
Department for Business Innovation and Skills,Intellectual Property Office,20/01/2015,Telephone Rentals and Call Charges,Business Support Directorate,Virgin Media,441066601001-13JAN15,46.84,Not applicable
Department for Business Innovation and Skills,Intellectual Property Office,20/01/2015,Telephone Rentals and Call Charges,Business Support Directorate,Virgin Media,740347401001-21OCT14,46.84,Not applicable
Department for Business Innovation and Skills,Intellectual Property Office,13/01/2015,Telephone Rentals and Call Charges,Business Support Directorate,Virgin Media,441057501001-09JAN15,46.86,Not applicable
Department for Business Innovation and Skills,Intellectual Property Office,02/01/2015,Telephone Rentals and Call Charges,Business Support Directorate,Virgin Media,740347401001-19DEC14,46.92,Not applicable
Department for Business Innovation and Skills,Intellectual Property Office,07/01/2015,Telephone Rentals and Call Charges,Business Support Directorate,Virgin Media,440030601001-02JAN15,47,Not applicable
Department for Business Innovation and Skills,Intellectual Property Office,13/01/2015,Telephone Rentals and Call Charges,Business Support Directorate,Virgin Media,441626301001-09JAN15,47.03,Not applicable
Department for Business Innovation and Skills,Intellectual Property Office,07/01/2015,Telephone Rentals and Call Charges,Business Support Directorate,Virgin Media,088813901001-31DEC14,47.17,Not applicable
Department for Business Innovation and Skills,Intellectual Property Office,07/01/2015,Telephone Rentals and Call Charges,Business Support Directorate,Virgin Media,288670201001-29DEC14,47.57,Not applicable
Department for Business Innovation and Skills,Intellectual Property Office,07/01/2015,Telephone Rentals and Call Charges,Business Support Directorate,Virgin Media,441066601001-11APR14,48.37,Not applicable
Department for Business Innovation and Skills,Intellectual Property Office,29/01/2015,Telephone Rentals and Call Charges,Business Support Directorate,Virgin Media,442013201001-23JAN15,49.1,Not applicable
Department for Business Innovation and Skills,Intellectual Property Office,29/01/2015,Telephone Rentals and Call Charges,Business Support Directorate,Virgin Media,416860501001-23JAN15,53.2,Not applicable
Department for Business Innovation and Skills,Intellectual Property Office,07/01/2015,Telephone Rentals and Call Charges,Business Support Directorate,Virgin Media,442061801001-02JAN15,57.44,Not applicable
Department for Business Innovation and Skills,Intellectual Property Office,13/01/2015,Telephone Rentals and Call Charges,Business Support Directorate,Virgin Media,442137701001-09JAN15,58.97,Not applicable
Department for Business Innovation and Skills,Intellectual Property Office,07/01/2015,Telephone Rentals and Call Charges,Business Support Directorate,Virgin Media,441893301001-02JAN15,60.01,Not applicable
Department for Business Innovation and Skills,Intellectual Property Office,13/01/2015,Telephone Rentals and Call Charges,Business Support Directorate,Virgin Media,441932801001-09JAN15,60.05,Not applicable
Department for Business Innovation and Skills,Intellectual Property Office,20/01/2015,Telephone Rentals and Call Charges,Business Support Directorate,Virgin Media,441885101001-13JAN15,60.07,Not applicable
Department for Business Innovation and Skills,Intellectual Property Office,21/01/2015,Telephone Rentals and Call Charges,Business Support Directorate,Virgin Media,441976801001-15JAN15,60.12,Not applicable
Department for Business Innovation and Skills,Intellectual Property Office,07/01/2015,Telephone Rentals and Call Charges,Business Support Directorate,Virgin Media,441885101001-11APR14,60.29,Not applicable
Department for Business Innovation and Skills,Intellectual Property Office,07/01/2015,Telephone Rentals and Call Charges,Business Support Directorate,Virgin Media,441885201001-11APR14,61.92,Not applicable
Department for Business Innovation and Skills,Intellectual Property Office,20/01/2015,Telephone Rentals and Call Charges,Business Support Directorate,Virgin Media,441885201001-13JAN15,62.84,Not applicable
Department for Business Innovation and Skills,Intellectual Property Office,21/01/2015,Telephone Rentals and Call Charges,Business Support Directorate,Virgin Media,442295501001-09JAN15,66.11,Not applicable
Department for Business Innovation and Skills,Intellectual Property Office,07/01/2015,Telephone Rentals and Call Charges,Business Support Directorate,Virgin Media,442217601001-29DEC14,66.2,Not applicable
Department for Business Innovation and Skills,Intellectual Property Office,07/01/2015,Telephone Rentals and Call Charges,Business Support Directorate,Virgin Media,441938301001-29DEC14,66.48,Not applicable
Department for Business Innovation and Skills,Intellectual Property Office,23/01/2015,Telephone Rentals and Call Charges,Business Support Directorate,Virgin Media,442217501001-09JAN15,66.5,Not applicable
Department for Business Innovation and Skills,Intellectual Property Office,09/01/2015,Telephone Rentals and Call Charges,Business Support Directorate,Virgin Media,442217001001-02JAN15,66.91,Not applicable
Department for Business Innovation and Skills,Intellectual Property Office,23/01/2015,Telephone Rentals and Call Charges,Business Support Directorate,Virgin Media,291879201001-14JAN15,67.16,Not applicable
Department for Business Innovation and Skills,Intellectual Property Office,21/01/2015,Telephone Rentals and Call Charges,Business Support Directorate,Virgin Media,874902401001-15JAN15,75.42,Not applicable
Department for Business Innovation and Skills,Intellectual Property Office,21/01/2015,Telephone Rentals and Call Charges,Business Support Directorate,Virgin Media,688514801001-12JAN15,87.41,Not applicable
Department for Business Innovation and Skills,Intellectual Property Office,21/01/2015,Telephone Rentals and Call Charges,Business Support Directorate,Questmark,8930,90,Not applicable
Department for Business Innovation and Skills,Intellectual Property Office,13/01/2015,Telephone Rentals and Call Charges,Business Support Directorate,Questmark,8911,90,Not applicable
Department for Business Innovation and Skills,Intellectual Property Office,09/01/2015,Telephone Rentals and Call Charges,Business Support Directorate,Virgin Media,414781801001-06JAN15,112.31,Not applicable
Department for Business Innovation and Skills,Intellectual Property Office,13/01/2015,Telephone Rentals and Call Charges,Business Support Directorate,Virgin Media,414650701001-09JAN15,114.46,Not applicable
Department for Business Innovation and Skills,Intellectual Property Office,28/01/2015,Telephone Rentals and Call Charges,Business Support Directorate,Spectrum Internet Ltd,19209,168,Not applicable
Department for Business Innovation and Skills,Intellectual Property Office,12/01/2015,Telephone Rentals and Call Charges,Business Support Directorate,Three,AAJ57368179,191.87,Not applicable
Department for Business Innovation and Skills,Intellectual Property Office,09/01/2015,Telephone Rentals and Call Charges,Business Support Directorate,Virgin Media,414673601001-06JAN15,339.83,Not applicable
Department for Business Innovation and Skills,Intellectual Property Office,09/01/2015,Telephone Rentals and Call Charges,Business Support Directorate,Virgin Media,409092201001-06JAN15,534,Not applicable
Department for Business Innovation and Skills,Intellectual Property Office,21/01/2015,Telephone Rentals and Call Charges,Business Support Directorate,Talk Talk Business,12949785,744.88,Not applicable
Department for Business Innovation and Skills,Intellectual Property Office,07/01/2015,Telephone Rentals and Call Charges,Business Support Directorate,Talk Talk Business,12803246,744.88,Not applicable
Department for Business Innovation and Skills,Intellectual Property Office,08/01/2015,Telephone Rentals and Call Charges,Business Support Directorate,Three,ALI55969045,1835.4,Not applicable
Department for Business Innovation and Skills,Intellectual Property Office,09/01/2015,Telephone Rentals and Call Charges,Business Support Directorate,Vodafone Corporate Ltd,UK10-012015-1353,3322.08,Not applicable
Department for Business Innovation and Skills,Intellectual Property Office,12/01/2015,Telephone Rentals and Call Charges,Business Support Directorate,British  Telecom,GP00002104M017IR-02JAN15,3462.6,Not applicable
Department for Business Innovation and Skills,Intellectual Property Office,12/01/2015,Telephone Rentals and Call Charges,Business Support Directorate,Orange,124179174,6660,Not applicable
Department for Business Innovation and Skills,Intellectual Property Office,21/01/2015,Telephone Rentals and Call Charges,Business Support Directorate,British  Telecom,VP02239170M15601CH,7322.85,Not applicable
Department for Business Innovation and Skills,Intellectual Property Office,07/01/2015,Telephone Rentals and Call Charges,Business Support Directorate,Vodafone Corporate Ltd,UK10-012015-1522,10132.91,Not applicable
Department for Business Innovation and Skills,Intellectual Property Office,07/01/2015,Books  Newspapers & Publications,Patents Directorate,Stationery Office,2229600X,5.94,Not applicable
Department for Business Innovation and Skills,Intellectual Property Office,05/01/2015,Books  Newspapers & Publications,"People, Property and Services Directorate",Menzies Distribution Ltd t/a Jones Yarrell,192710,264.78,Not applicable
Department for Business Innovation and Skills,Intellectual Property Office,06/01/2015,Books  Newspapers & Publications,"People, Property and Services Directorate",Reed Business Information,DSINV00081678,4250.4,Not applicable
Department for Business Innovation and Skills,Intellectual Property Office,08/01/2015,Overseas Patent Specifications,Patents Directorate,British Library,1397744503,2911.94,Not applicable
Department for Business Innovation and Skills,Intellectual Property Office,21/01/2015,Paper,Finance Directorate,Antalis,VS4451225,624,Not applicable
Department for Business Innovation and Skills,Intellectual Property Office,12/01/2015,Paper,Finance Directorate,Antalis,VS4416714,1850.88,Not applicable
Department for Business Innovation and Skills,Intellectual Property Office,21/01/2015,Other Stationery & General Supplies,Finance Directorate,Total Print Finishing Services Ltd,36987,44.54,Not applicable
Department for Business Innovation and Skills,Intellectual Property Office,21/01/2015,Other Stationery & General Supplies,Finance Directorate,Total Print Finishing Services Ltd,37018,150.2,Not applicable
Department for Business Innovation and Skills,Intellectual Property Office,09/01/2015,Other Stationery & General Supplies,Finance Directorate,Print On Solutions Ltd,125984,226.32,Not applicable
Department for Business Innovation and Skills,Intellectual Property Office,09/01/2015,Other Stationery & General Supplies,Finance Directorate,Williams Lea Ltd,BIS-IPO14120001,277.2,Not applicable
Department for Business Innovation and Skills,Intellectual Property Office,09/01/2015,Other Stationery & General Supplies,Finance Directorate,Print On Solutions Ltd,126086,280.46,Not applicable
Department for Business Innovation and Skills,Intellectual Property Office,21/01/2015,Other Stationery & General Supplies,Finance Directorate,Robert Horne Paper Company Ltd,562677,362.72,Not applicable
Department for Business Innovation and Skills,Intellectual Property Office,12/01/2015,Other Stationery & General Supplies,Finance Directorate,Antalis,VS4416714,715.2,Not applicable
Department for Business Innovation and Skills,Intellectual Property Office,16/01/2015,Other Stationery & General Supplies,Finance Directorate,Antalis,VS4438931,839.62,Not applicable
Department for Business Innovation and Skills,Intellectual Property Office,09/01/2015,Other Stationery & General Supplies,Finance Directorate,Banner  Business Supplies Ltd,29174547,1732.5,Not applicable
Department for Business Innovation and Skills,Intellectual Property Office,23/01/2015,Office Supplies,"People, Property and Services Directorate",Elliott Sound,1173,1278,Not applicable
Department for Business Innovation and Skills,Intellectual Property Office,12/01/2015,Office Supplies,"People, Property and Services Directorate",Newey & Eyre,132538914,1858.8,Not applicable
Department for Business Innovation and Skills,Intellectual Property Office,16/01/2015,Machinery hire and maintenance,"People, Property and Services Directorate",Total Print Finishing Services Ltd,37017,235,Not applicable
Department for Business Innovation and Skills,Intellectual Property Office,09/01/2015,Machinery hire and maintenance,"People, Property and Services Directorate",Xerox (UK) Ltd,1603825635,249.99,Not applicable
Department for Business Innovation and Skills,Intellectual Property Office,09/01/2015,Machinery hire and maintenance,"People, Property and Services Directorate",Xerox (UK) Ltd,1603825640,249.99,Not applicable
Department for Business Innovation and Skills,Intellectual Property Office,09/01/2015,Machinery hire and maintenance,"People, Property and Services Directorate",Xerox (UK) Ltd,1603825634,277,Not applicable
Department for Business Innovation and Skills,Intellectual Property Office,09/01/2015,Machinery hire and maintenance,"People, Property and Services Directorate",Xerox (UK) Ltd,1603825636,499.98,Not applicable
Department for Business Innovation and Skills,Intellectual Property Office,09/01/2015,Machinery hire and maintenance,"People, Property and Services Directorate",Xerox (UK) Ltd,1603825638,499.98,Not applicable
Department for Business Innovation and Skills,Intellectual Property Office,09/01/2015,Machinery hire and maintenance,"People, Property and Services Directorate",Xerox (UK) Ltd,1603825642,855.99,Not applicable
Department for Business Innovation and Skills,Intellectual Property Office,09/01/2015,Machinery hire and maintenance,"People, Property and Services Directorate",Xerox (UK) Ltd,1603825641,855.99,Not applicable
Department for Business Innovation and Skills,Intellectual Property Office,09/01/2015,Machinery hire and maintenance,"People, Property and Services Directorate",Danwood Group Ltd,3842190,1589.98,Not applicable
Department for Business Innovation and Skills,Intellectual Property Office,09/01/2015,Machinery hire and maintenance,"People, Property and Services Directorate",Xerox (UK) Ltd,1603825637,9378.89,Not applicable
Department for Business Innovation and Skills,Intellectual Property Office,09/01/2015,Machinery hire and maintenance,"People, Property and Services Directorate",Xerox (UK) Ltd,1603825639,11140.13,Not applicable
Department for Business Innovation and Skills,Intellectual Property Office,09/01/2015,Machinery hire and maintenance,"People, Property and Services Directorate",Xerox (UK) Ltd,900127347,20948.49,Not applicable
Department for Business Innovation and Skills,Intellectual Property Office,08/01/2015,Maintenance of computers,Business Support Directorate,Computacenter (UK) ltd,3880361146,939.54,Not applicable
Department for Business Innovation and Skills,Intellectual Property Office,29/01/2015,Maintenance of computers,Business Support Directorate,Idera Inc,0115339-RA,1444.6,Not applicable
Department for Business Innovation and Skills,Intellectual Property Office,29/01/2015,Maintenance of computers,Business Support Directorate,Techland Group,SIN18574,4007.34,Not applicable
Department for Business Innovation and Skills,Intellectual Property Office,21/01/2015,Maintenance of computers,Business Support Directorate,Software Box Ltd (SBL),INV74090,8553.6,Not applicable
Department for Business Innovation and Skills,Intellectual Property Office,07/01/2015,Online Bureau Charges,Patents Directorate,STN International,9340270818A,0.01,Not applicable
Department for Business Innovation and Skills,Intellectual Property Office,07/01/2015,Online Bureau Charges,Patents Directorate,STN International,9340274578,18.8,Not applicable
Department for Business Innovation and Skills,Intellectual Property Office,07/01/2015,Online Bureau Charges,Patents Directorate,American Chemical Society,1064246,617.49,Not applicable
Department for Business Innovation and Skills,Intellectual Property Office,30/01/2015,Online Bureau Charges,Patents Directorate,Questel Ireland Ltd,150141A,765.81,Not applicable
Department for Business Innovation and Skills,Intellectual Property Office,07/01/2015,Online Bureau Charges,Patents Directorate,STN International,9340274276,10291.87,Not applicable
Department for Business Innovation and Skills,Intellectual Property Office,30/01/2015,Online Bureau Charges,Patents Directorate,STN International,9340274950,10394.39,Not applicable
Department for Business Innovation and Skills,Intellectual Property Office,30/01/2015,Online Bureau Charges,Patents Directorate,Springer Customer Service Centre,2932025603,11820.34,Not applicable
Department for Business Innovation and Skills,Intellectual Property Office,30/01/2015,Online Bureau Charges,Patents Directorate,European Patent Office,40241420,73559.65,Not applicable
Department for Business Innovation and Skills,Intellectual Property Office,07/01/2015,Online Bureau Charges,Patents Directorate,European Patent Office,40240679,82170.27,Not applicable
Department for Business Innovation and Skills,Intellectual Property Office,12/01/2015,IT Equipment,Business Support Directorate,Personal expenses name witheld,52711,236.71,Not applicable
Department for Business Innovation and Skills,Intellectual Property Office,06/01/2015,IT Equipment,Patents Directorate,Probrand Ltd,OP-I495159,239.61,Not applicable
Department for Business Innovation and Skills,Intellectual Property Office,06/01/2015,IT Equipment,Business Support Directorate,Probrand Ltd,OP-I495159,251.62,Not applicable
Department for Business Innovation and Skills,Intellectual Property Office,23/01/2015,IT Equipment,Business Support Directorate,MISCO,10352642,590.74,Not applicable
Department for Business Innovation and Skills,Intellectual Property Office,29/01/2015,IT Equipment,Business Support Directorate,Kelway (UK) Ltd,PSINV01325364,629.88,Not applicable
Department for Business Innovation and Skills,Intellectual Property Office,23/01/2015,IT Equipment,Business Support Directorate,Computacenter (UK) ltd,3880387482,858.24,Not applicable
Department for Business Innovation and Skills,Intellectual Property Office,06/01/2015,IT Equipment,Business Support Directorate,Computacenter (UK) ltd,3880369997,1523.15,Not applicable
Department for Business Innovation and Skills,Intellectual Property Office,23/01/2015,IT Equipment,Business Support Directorate,Computacenter (UK) ltd,3880385760,3139.7,Not applicable
Department for Business Innovation and Skills,Intellectual Property Office,23/01/2015,IT Equipment,Business Support Directorate,Computacenter (UK) ltd,3880385759,3356.06,Not applicable
Department for Business Innovation and Skills,Intellectual Property Office,23/01/2015,IT Equipment,Business Support Directorate,MISCO,10354532,3839.32,Not applicable
Department for Business Innovation and Skills,Intellectual Property Office,09/01/2015,Purchase of Software,Business Support Directorate,CESG,101546,396,Not applicable
Department for Business Innovation and Skills,Intellectual Property Office,07/01/2015,Purchase of Software,Business Support Directorate,VeriSign Sarl,520001431,3523.73,Not applicable
Department for Business Innovation and Skills,Intellectual Property Office,30/01/2015,Purchase of Software,Business Support Directorate,VeriSign Sarl,520001551,3573.13,Not applicable
Department for Business Innovation and Skills,Intellectual Property Office,02/01/2015,Purchase of Software,Business Support Directorate,Open Connections Solutions Limited,260419,10500,Not applicable
Department for Business Innovation and Skills,Intellectual Property Office,13/01/2015,Software License,Business Support Directorate,IBM UK Ltd,105326452,-20865.6,Not applicable
Department for Business Innovation and Skills,Intellectual Property Office,07/01/2015,Software License,Business Support Directorate,Dell Software International Ltd,4700090976,504,Not applicable
Department for Business Innovation and Skills,Intellectual Property Office,08/01/2015,Software License,Business Support Directorate,Computacenter (UK) ltd,3880365270,877.8,Not applicable
Department for Business Innovation and Skills,Intellectual Property Office,12/01/2015,Software License,Finance Directorate,Price Waterhouse Coopers,1336510801,3168,Not applicable
Department for Business Innovation and Skills,Intellectual Property Office,20/01/2015,Software License,Business Support Directorate,Satisnet Ltd,9453,3456,Not applicable
Department for Business Innovation and Skills,Intellectual Property Office,13/01/2015,Software License,Business Support Directorate,IBM UK Ltd,105330232,4536,Not applicable
Department for Business Innovation and Skills,Intellectual Property Office,13/01/2015,Software License,Business Support Directorate,IBM UK Ltd,105322671,20865.6,Not applicable
Department for Business Innovation and Skills,Intellectual Property Office,02/01/2015,Project contractor costs,Business Support Directorate,Evolve Business Consultancy,6470,17100,Not applicable
Department for Business Innovation and Skills,Intellectual Property Office,06/01/2015,IT Contractors,Business Support Directorate,LA International Computer Consultants Ltd,LA310004,755.3,Not applicable
Department for Business Innovation and Skills,Intellectual Property Office,09/01/2015,IT Contractors,Business Support Directorate,LA International Computer Consultants Ltd,LA310571,847.07,Not applicable
Department for Business Innovation and Skills,Intellectual Property Office,06/01/2015,IT Contractors,Business Support Directorate,LA International Computer Consultants Ltd,LA310005,872.1,Not applicable
Department for Business Innovation and Skills,Intellectual Property Office,06/01/2015,IT Contractors,Business Support Directorate,LA International Computer Consultants Ltd,LA310008,1405.2,Not applicable
Department for Business Innovation and Skills,Intellectual Property Office,09/01/2015,IT Contractors,Business Support Directorate,LA International Computer Consultants Ltd,LA310567,1525.72,Not applicable
Department for Business Innovation and Skills,Intellectual Property Office,09/01/2015,IT Contractors,Business Support Directorate,Capita Business Services  Ltd,LO10022536,1701.87,Not applicable
Department for Business Innovation and Skills,Intellectual Property Office,16/01/2015,IT Contractors,Business Support Directorate,LA International Computer Consultants Ltd,LA311731,1814.32,Not applicable
Department for Business Innovation and Skills,Intellectual Property Office,16/01/2015,IT Contractors,Business Support Directorate,LA International Computer Consultants Ltd,LA311734,1888.13,Not applicable
Department for Business Innovation and Skills,Intellectual Property Office,16/01/2015,IT Contractors,Business Support Directorate,LA International Computer Consultants Ltd,LA311732,1891.08,Not applicable
Department for Business Innovation and Skills,Intellectual Property Office,28/01/2015,IT Contractors,Business Support Directorate,LA International Computer Consultants Ltd,LA312856,2055.11,Not applicable
Department for Business Innovation and Skills,Intellectual Property Office,23/01/2015,IT Contractors,Business Support Directorate,LA International Computer Consultants Ltd,LA312571,2098.08,Not applicable
Department for Business Innovation and Skills,Intellectual Property Office,06/01/2015,IT Contractors,Business Support Directorate,LA International Computer Consultants Ltd,LA310006,2285.21,Not applicable
Department for Business Innovation and Skills,Intellectual Property Office,09/01/2015,IT Contractors,Business Support Directorate,LA International Computer Consultants Ltd,LA310569,2328.7,Not applicable
Department for Business Innovation and Skills,Intellectual Property Office,16/01/2015,IT Contractors,Business Support Directorate,LA International Computer Consultants Ltd,LA311735,2328.7,Not applicable
Department for Business Innovation and Skills,Intellectual Property Office,16/01/2015,IT Contractors,Business Support Directorate,LA International Computer Consultants Ltd,LA311733,2448.61,Not applicable
Department for Business Innovation and Skills,Intellectual Property Office,29/01/2015,IT Contractors,Business Support Directorate,Capita Business Services  Ltd,LO10024293,2463.18,Not applicable
Department for Business Innovation and Skills,Intellectual Property Office,23/01/2015,IT Contractors,Business Support Directorate,LA International Computer Consultants Ltd,LA312572,2762.63,Not applicable
Department for Business Innovation and Skills,Intellectual Property Office,16/01/2015,IT Contractors,Business Support Directorate,LA International Computer Consultants Ltd,LA311738,2810.4,Not applicable
Department for Business Innovation and Skills,Intellectual Property Office,23/01/2015,IT Contractors,Business Support Directorate,LA International Computer Consultants Ltd,LA312096,2845.54,Not applicable
Department for Business Innovation and Skills,Intellectual Property Office,16/01/2015,IT Contractors,Business Support Directorate,LA International Computer Consultants Ltd,LA311737,2915.8,Not applicable
Department for Business Innovation and Skills,Intellectual Property Office,20/01/2015,IT Contractors,Business Support Directorate,Capita Business Services  Ltd,LO10023143,3199.45,Not applicable
Department for Business Innovation and Skills,Intellectual Property Office,09/01/2015,IT Contractors,Business Support Directorate,LA International Computer Consultants Ltd,LA310566,3263.92,Not applicable
Department for Business Innovation and Skills,Intellectual Property Office,09/01/2015,IT Contractors,Business Support Directorate,Capita Business Services  Ltd,LO10022536,3440.17,Not applicable
Department for Business Innovation and Skills,Intellectual Property Office,06/01/2015,IT Contractors,Business Support Directorate,LA International Computer Consultants Ltd,LA310271,3782.96,Not applicable
Department for Business Innovation and Skills,Intellectual Property Office,06/01/2015,IT Contractors,Business Support Directorate,LA International Computer Consultants Ltd,LA310007,4657.38,Not applicable
Department for Business Innovation and Skills,Intellectual Property Office,30/01/2015,IT Contractors,Change Program,Valtech Ltd,UKSI841,5940,Not applicable
Department for Business Innovation and Skills,Intellectual Property Office,20/01/2015,IT Contractors,Business Support Directorate,Capita Business Services  Ltd,LO10023143,6146.79,Not applicable
Department for Business Innovation and Skills,Intellectual Property Office,09/01/2015,IT Contractors,Business Support Directorate,LA International Computer Consultants Ltd,LA310570,6293.76,Not applicable
Department for Business Innovation and Skills,Intellectual Property Office,09/01/2015,IT Contractors,Business Support Directorate,Capita Business Services  Ltd,LO10022536,7550.21,Not applicable
Department for Business Innovation and Skills,Intellectual Property Office,09/01/2015,IT Contractors,Business Support Directorate,LA International Computer Consultants Ltd,LA310568,8260.56,Not applicable
Department for Business Innovation and Skills,Intellectual Property Office,05/01/2015,IT Contractors,Business Support Directorate,Capita Business Services  Ltd,LO10021323,9102.89,Not applicable
Department for Business Innovation and Skills,Intellectual Property Office,16/01/2015,IT Contractors,Business Support Directorate,LA International Computer Consultants Ltd,LA311736,10026.74,Not applicable
Department for Business Innovation and Skills,Intellectual Property Office,29/01/2015,IT Contractors,Business Support Directorate,Capita Business Services  Ltd,LO10024293,10495.7,Not applicable
Department for Business Innovation and Skills,Intellectual Property Office,05/01/2015,IT Contractors,Business Support Directorate,Capita Business Services  Ltd,LO10021323,11548.11,Not applicable
Department for Business Innovation and Skills,Intellectual Property Office,29/01/2015,IT Contractors,Business Support Directorate,Capita Business Services  Ltd,LO10024293,12570.72,Not applicable
Department for Business Innovation and Skills,Intellectual Property Office,20/01/2015,IT Contractors,Business Support Directorate,Capita Business Services  Ltd,LO10023143,14826.78,Not applicable
Department for Business Innovation and Skills,Intellectual Property Office,26/01/2015,IT Contractors,Business Support Directorate,Trustmarque Solutions Ltd,2221224,15960,Not applicable
Department for Business Innovation and Skills,Intellectual Property Office,30/01/2015,IT Contractors,Change Program,Valtech Ltd,UKSI813,51840,Not applicable
Department for Business Innovation and Skills,Intellectual Property Office,16/01/2015,Marketing and Publicity ,Innovation Directorate,Birmingham City Council,9001639675,142.1,Not applicable
Department for Business Innovation and Skills,Intellectual Property Office,26/01/2015,Marketing and Publicity ,Innovation Directorate,The Biz Expos Ltd,GM2015-014,200,Not applicable
Department for Business Innovation and Skills,Intellectual Property Office,09/01/2015,Marketing and Publicity ,Innovation Directorate,Harlow Business Exhibitions Ltd,100528,245,Not applicable
Department for Business Innovation and Skills,Intellectual Property Office,27/01/2015,Marketing and Publicity ,Innovation Directorate,Business & Enterprise North East Ltd,SI-105229,392,Not applicable
Department for Business Innovation and Skills,Intellectual Property Office,27/01/2015,Marketing and Publicity ,Innovation Directorate,Upper Street Events Ltd,44006,468,Not applicable
Department for Business Innovation and Skills,Intellectual Property Office,13/01/2015,Marketing and Publicity ,Innovation Directorate,Memo Events Ltd,185764,480,Not applicable
Department for Business Innovation and Skills,Intellectual Property Office,14/01/2015,Marketing and Publicity ,Innovation Directorate,Sterling Integrity,INV-0706,598,Not applicable
Department for Business Innovation and Skills,Intellectual Property Office,09/01/2015,Marketing and Publicity ,Innovation Directorate,European Trade & Exhibition Services Ltd,10873,621,Not applicable
Department for Business Innovation and Skills,Intellectual Property Office,08/01/2015,Marketing and Publicity ,Innovation Directorate,Reputation Institute,90172,3000,Not applicable
Department for Business Innovation and Skills,Intellectual Property Office,09/01/2015,Marketing and Publicity ,Innovation Directorate,Reputation Institute,90175,3000,Not applicable
Department for Business Innovation and Skills,Intellectual Property Office,20/01/2015,Marketing and Publicity ,Innovation Directorate,Prysm Group,INV-2725,7000,Not applicable
Department for Business Innovation and Skills,Intellectual Property Office,22/01/2015,Aardman project,Innovation Directorate,Aardman Animations Ltd,29576,910.8,Not applicable
Department for Business Innovation and Skills,Intellectual Property Office,22/01/2015,Aardman project,Innovation Directorate,Aardman Animations Ltd,29577,1539.6,Not applicable
Department for Business Innovation and Skills,Intellectual Property Office,14/01/2015,Law Reporting,Patents Directorate,Scottish Government,61006052,155,Not applicable
Department for Business Innovation and Skills,Intellectual Property Office,05/01/2015,Law Reporting,Patents Directorate,HM Courts & Tribunal Service,IHH307HMCTS-15383A,700,Not applicable
Department for Business Innovation and Skills,Intellectual Property Office,14/01/2015,Law Reporting,Trade Marks Directorate,Marten Walsh Cherer Ltd,87740,726.25,Not applicable
Department for Business Innovation and Skills,Intellectual Property Office,26/01/2015,Treasury Solicitors,Copyright and IP Enforcement Directorate,DJ Campbell,42893,810,Not applicable
Department for Business Innovation and Skills,Intellectual Property Office,21/01/2015,Treasury Solicitors,Patents Directorate,Treasury Solicitors,412722,1305.24,Not applicable
Department for Business Innovation and Skills,Intellectual Property Office,21/01/2015,Treasury Solicitors,Trade Marks Directorate,Treasury Solicitors,412722,5147.36,Not applicable
Department for Business Innovation and Skills,Intellectual Property Office,12/01/2015,Treasury Solicitors,Trade Marks Directorate,Eversheds Solicitors LLP,91351645,6324.2,Not applicable
Department for Business Innovation and Skills,Intellectual Property Office,08/01/2015,Treasury Solicitors,Trade Marks Directorate,Eversheds Solicitors LLP,91342937,7437,Not applicable
Department for Business Innovation and Skills,Intellectual Property Office,21/01/2015,Copyright Tribunal - Expenditure,Copyright and IP Enforcement Directorate,Personal expenses name witheld,52735,112.65,Not applicable
Department for Business Innovation and Skills,Intellectual Property Office,09/01/2015,Copyright Tribunal - Expenditure,Copyright and IP Enforcement Directorate,Personal expenses name witheld,52708,117.55,Not applicable
Department for Business Innovation and Skills,Intellectual Property Office,13/01/2015,Entertainment,Copyright and IP Enforcement Directorate,Personal expenses name witheld,52717,5.97,Not applicable
Department for Business Innovation and Skills,Intellectual Property Office,09/01/2015,Entertainment,"People, Property and Services Directorate",Personal expenses name witheld,52709,16.39,Not applicable
Department for Business Innovation and Skills,Intellectual Property Office,05/01/2015,Non - IT Contractors,Copyright and IP Enforcement Directorate,Companies House,243898747,4,Not applicable
Department for Business Innovation and Skills,Intellectual Property Office,12/01/2015,Non - IT Contractors,Copyright and IP Enforcement Directorate,Experian Ltd,IEX3001517653,16.74,Not applicable
Department for Business Innovation and Skills,Intellectual Property Office,27/01/2015,Non - IT Contractors,International Policy Directorate,R  Jacob,52737,1824,Not applicable
Department for Business Innovation and Skills,Intellectual Property Office,09/01/2015,Non - IT Contractors,Copyright and IP Enforcement Directorate,Capita Resourcing Ltd,WN4018696,2736,Not applicable
Department for Business Innovation and Skills,Intellectual Property Office,06/01/2015,Steering Board,Central Support,Personal expenses name witheld,52706,46.3,Not applicable
Department for Business Innovation and Skills,Intellectual Property Office,21/01/2015,Steering Board,Central Support,N Nanayakkara,52734,136.33,Not applicable
Department for Business Innovation and Skills,Intellectual Property Office,05/01/2015,Steering Board,Central Support,Personal expenses name witheld,52699,144.45,Not applicable
Department for Business Innovation and Skills,Intellectual Property Office,05/01/2015,Steering Board,Central Support,N Nanayakkara,52701,320.03,Not applicable
Department for Business Innovation and Skills,Intellectual Property Office,28/01/2015,Steering Board,Central Support,Personal expenses name witheld,52747,1189.95,Not applicable
Department for Business Innovation and Skills,Intellectual Property Office,14/01/2015,Intellectual Property Institute,"People, Property and Services Directorate",Iron Mountain UK Ltd,RX03750,1696.63,Not applicable
Department for Business Innovation and Skills,Intellectual Property Office,21/01/2015,Translation,"People, Property and Services Directorate",K International PLC,33766,373.38,Not applicable
Department for Business Innovation and Skills,Intellectual Property Office,05/01/2015,Innovation support,Trade Marks Directorate,Smart Graphics,2008,108,Not applicable
Department for Business Innovation and Skills,Intellectual Property Office,28/01/2015,Innovation support,Innovation Directorate,Lucky Voice Pods Ltd,LVP0703,390,Not applicable
Department for Business Innovation and Skills,Intellectual Property Office,20/01/2015,Innovation support,Innovation Directorate,SGA Productions Ltd,1947,1320.96,Not applicable
Department for Business Innovation and Skills,Intellectual Property Office,13/01/2015,Innovation support,Innovation Directorate,Wordlink,7037,8826,Not applicable
Department for Business Innovation and Skills,Intellectual Property Office,07/01/2015,Innovation support,Innovation Directorate,Kempner & Partners LLP,5042,2935.68,Not applicable
Department for Business Innovation and Skills,Intellectual Property Office,27/01/2015,Innovation support,Innovation Directorate,IP Asset LLP,3040,2998.8,Not applicable
Department for Business Innovation and Skills,Intellectual Property Office,07/01/2015,Innovation support,Innovation Directorate,Kempner & Partners LLP,5052,3000,Not applicable
Department for Business Innovation and Skills,Intellectual Property Office,27/01/2015,Innovation support,Innovation Directorate,Scintilla IP LLP,INV-00349,3000,Not applicable
Department for Business Innovation and Skills,Intellectual Property Office,27/01/2015,Innovation support,Innovation Directorate,Creation IP Ltd,IV539,3000,Not applicable
Department for Business Innovation and Skills,Intellectual Property Office,07/01/2015,Innovation support,Innovation Directorate,Kempner & Partners LLP,5051,3000,Not applicable
Department for Business Innovation and Skills,Intellectual Property Office,09/01/2015,Innovation support,Innovation Directorate,Kempner & Partners LLP,5079,3000,Not applicable
Department for Business Innovation and Skills,Intellectual Property Office,07/01/2015,Innovation support,Innovation Directorate,3volution  LLP,2088,3000,Not applicable
Department for Business Innovation and Skills,Intellectual Property Office,27/01/2015,Innovation support,Innovation Directorate,Scintilla IP LLP,INV-00350,3000,Not applicable
Department for Business Innovation and Skills,Intellectual Property Office,27/01/2015,Innovation support,Innovation Directorate,Shulmans LLP,280827,3000,Not applicable
Department for Business Innovation and Skills,Intellectual Property Office,09/01/2015,Innovation support,Innovation Directorate,RB Consulting,83,3000,Not applicable
Department for Business Innovation and Skills,Intellectual Property Office,27/01/2015,Innovation support,Innovation Directorate,Sycamore Innovation Management Ltd,SIM13-225,3000,Not applicable
Department for Business Innovation and Skills,Intellectual Property Office,06/01/2015,Innovation support,Innovation Directorate,Shulmans LLP,279718,3000,Not applicable
Department for Business Innovation and Skills,Intellectual Property Office,07/01/2015,Innovation support,Innovation Directorate,RGC Jenkins & Co,454086,3000,Not applicable
Department for Business Innovation and Skills,Intellectual Property Office,07/01/2015,Innovation support,Innovation Directorate,Kempner & Partners LLP,5044,3000,Not applicable
Department for Business Innovation and Skills,Intellectual Property Office,06/01/2015,Innovation support,Innovation Directorate,3volution  LLP,2090,3000,Not applicable
Department for Business Innovation and Skills,Intellectual Property Office,07/01/2015,Innovation support,Innovation Directorate,3volution  LLP,2092,3000,Not applicable
Department for Business Innovation and Skills,Intellectual Property Office,14/01/2015,Research Projects,Copyright and IP Enforcement Directorate,Luke McDonagh,CT-RES-016-Jan15,600,Not applicable
Department for Business Innovation and Skills,Intellectual Property Office,13/01/2015,Research Projects,Innovation Directorate,SPA Future Thinking,16413,24140,Not applicable
Department for Business Innovation and Skills,Intellectual Property Office,28/01/2015,European co-operation,Innovation Directorate,HRG UK,426733403,57.24,Not applicable
Department for Business Innovation and Skills,Intellectual Property Office,28/01/2015,European co-operation,Innovation Directorate,HRG UK,426733402,57.24,Not applicable
Department for Business Innovation and Skills,Intellectual Property Office,05/01/2015,European co-operation,Innovation Directorate,Goldborough Studio Ltd,GS0121,145.83,Not applicable
Department for Business Innovation and Skills,Intellectual Property Office,28/01/2015,Seminars and Conferences,International Policy Directorate,HRG UK,689060907,-1729.79,Not applicable
Department for Business Innovation and Skills,Intellectual Property Office,27/01/2015,Seminars and Conferences,International Policy Directorate,Foreign and Commonwealth Office,1074340,4704.05,Not applicable
Department for Business Innovation and Skills,Intellectual Property Office,30/01/2015,Seminars and Conferences,International Policy Directorate,British Embasy,14IP1,10000,Not applicable
Department for Business Innovation and Skills,Intellectual Property Office,30/01/2015,Seminars and Conferences,International Policy Directorate,British Embasy,14IP2A,10000,Not applicable
Department for Business Innovation and Skills,Intellectual Property Office,27/01/2015,Seminars and Conferences,International Policy Directorate,Foreign and Commonwealth Office,1075082,22036.83,Not applicable
Department for Business Innovation and Skills,Intellectual Property Office,28/01/2015,Healthcare,"People, Property and Services Directorate",Dyslexia Action,181214,475,Not applicable
Department for Business Innovation and Skills,Intellectual Property Office,23/01/2015,Eyecare,"People, Property and Services Directorate",Personal expenses name witheld,52738,15,Not applicable
Department for Business Innovation and Skills,Intellectual Property Office,20/01/2015,Eyecare,"People, Property and Services Directorate",Personal expenses name witheld,52731,20,Not applicable
Department for Business Innovation and Skills,Intellectual Property Office,12/01/2015,Eyecare,"People, Property and Services Directorate",Personal expenses name witheld,52713,20,Not applicable
Department for Business Innovation and Skills,Intellectual Property Office,12/01/2015,Other,"People, Property and Services Directorate",Office of Communications,77777149,100,Not applicable
Department for Business Innovation and Skills,Intellectual Property Office,14/01/2015,Other,"People, Property and Services Directorate",On Your Bike,32815,722.97,Not applicable
Department for Business Innovation and Skills,Intellectual Property Office,30/01/2015,Other,"People, Property and Services Directorate",On Your Bike,32822,1105.99,Not applicable
Department for Business Innovation and Skills,Intellectual Property Office,13/01/2015,Other,"People, Property and Services Directorate",Craftfolk,cf573-14,2250,Not applicable
Department for Business Innovation and Skills,Intellectual Property Office,09/01/2015,Software License,Business Support Directorate,J2,H57720150113fbkpoklpv,24.13,Not applicable
Department for Business Innovation and Skills,Intellectual Property Office,09/01/2015,Training,Innovation Directorate,Futurelearn.Com,H57720150113qbxwtjyrj,30.2,Not applicable
Department for Business Innovation and Skills,Intellectual Property Office,09/01/2015,Training,Innovation Directorate,Futurelearn.Com,H57720150113gxnccjxuk,30.2,Not applicable
Department for Business Innovation and Skills,Intellectual Property Office,20/01/2015,Training,Finance Directorate,Www.Cips.Org,H57720150122xfgzmddfq,95.88,Not applicable
Department for Business Innovation and Skills,Intellectual Property Office,08/01/2015,Training,Finance Directorate,Ugcs,H57720150111zvfnzrnmb,434.5,Not applicable
Department for Business Innovation and Skills,Intellectual Property Office,29/01/2015,Training,"People, Property and Services Directorate",Reflex Wales Ltd,H57720150131bgwiktkrk,135,Not applicable
Department for Business Innovation and Skills,Intellectual Property Office,29/01/2015,Training,"People, Property and Services Directorate",Paypal,H57720150131illlfvvkc,546,Not applicable
Department for Business Innovation and Skills,Intellectual Property Office,29/01/2015,Training,"People, Property and Services Directorate",Paypal,H57720150131xowtsujxc,546,Not applicable
Department for Business Innovation and Skills,Intellectual Property Office,23/01/2015,Training,"People, Property and Services Directorate",Paypal,H57720150127irkbwsxms,1.59,Not applicable
Department for Business Innovation and Skills,Intellectual Property Office,16/01/2015,Training,International Policy Directorate,Training Byte Size Ltd,H57720150120fmjjyguxe,146.4,Not applicable
Department for Business Innovation and Skills,Intellectual Property Office,09/01/2015,Training,"People, Property and Services Directorate",Training Byte Size Ltd,H57720150113fazjfhoky,156,Not applicable
Department for Business Innovation and Skills,Intellectual Property Office,28/01/2015,Training,Innovation Directorate,Arrow Enterprise Computin,H57720150130epsgvxyfy,-509.4,Not applicable
Department for Business Innovation and Skills,Intellectual Property Office,23/01/2015,Training,Finance Directorate,Www.Cips.Org,H57720150127zuzoyjhfe,95.88,Not applicable
Department for Business Innovation and Skills,Intellectual Property Office,23/01/2015,Training,Business Support Directorate,Forest Technologies Ll,H57720150127jbfxzhjoe,1908,Not applicable
Department for Business Innovation and Skills,Intellectual Property Office,21/01/2015,Training,Business Support Directorate,Vue Itcertificationvue,H57720150123mxwatgtil,118.8,Not applicable
Department for Business Innovation and Skills,Intellectual Property Office,21/01/2015,Training,Business Support Directorate,Vue Itcertificationvue,H57720150123nntivlviq,118.8,Not applicable
Department for Business Innovation and Skills,Intellectual Property Office,17/01/2015,Training,"People, Property and Services Directorate",Amazon Eu,H57720150120iakphmhxq,12.87,Not applicable
Department for Business Innovation and Skills,Intellectual Property Office,16/01/2015,Training,"People, Property and Services Directorate",Www.Apm.Org.Uk,H57720150120uxmmviekz,-1125,Not applicable
Department for Business Innovation and Skills,Intellectual Property Office,15/01/2015,Training,IMPROVE Project,B S R I A,H57720150117zmtnjdvdi,1770,Not applicable
Department for Business Innovation and Skills,Intellectual Property Office,15/01/2015,Training,Patents Directorate,Ugcs,H57720150117mbxmcyqqc,1805,Not applicable
Department for Business Innovation and Skills,Intellectual Property Office,08/01/2015,Training,Finance Directorate,Ugcs,H57720150111tbyhqicpn,434.5,Not applicable
Department for Business Innovation and Skills,Intellectual Property Office,22/01/2015,Training,"People, Property and Services Directorate",Hie Newport,H57720150124fnblcsgwx,150,Not applicable
Department for Business Innovation and Skills,Intellectual Property Office,05/01/2015,Training,Patents Directorate,Paypal,H57720150107jrbbfyyqy,55,Not applicable
Department for Business Innovation and Skills,Intellectual Property Office,05/01/2015,Training,Patents Directorate,Paypal,H57720150107eixveiahp,55,Not applicable
Department for Business Innovation and Skills,Intellectual Property Office,05/01/2015,Training,Patents Directorate,Paypal,H57720150107hzqfqyzzw,55,Not applicable
Department for Business Innovation and Skills,Intellectual Property Office,16/01/2015,Training,Innovation Directorate,Birkbeck College,H57720150120hefucjnyw,750,Not applicable
Department for Business Innovation and Skills,Intellectual Property Office,09/01/2015,Training,Innovation Directorate,Lobsterdm,H57720150113bepyeluov,228,Not applicable
Department for Business Innovation and Skills,Intellectual Property Office,05/01/2015,Training,Business Support Directorate,General Assembly,H57720150107ysyauhkfw,33.25,Not applicable
Department for Business Innovation and Skills,Intellectual Property Office,27/01/2015,Training,"People, Property and Services Directorate",Top Table Catering,H57720150129idannzjtw,102,Not applicable
Department for Business Innovation and Skills,Intellectual Property Office,21/01/2015,Training,"People, Property and Services Directorate",Marksandspencer.Co,H57720150123joshktegn,40,Not applicable
Department for Business Innovation and Skills,Intellectual Property Office,19/01/2015,Training,"People, Property and Services Directorate",Marksandspencer.Co,H57720150121dvyworomp,40,Not applicable
Department for Business Innovation and Skills,Intellectual Property Office,28/01/2015,Recruitment Advertising,Patents Directorate,"Amazon Svcs Europe,sar",H57720150130nelpijqsk,30.6,Not applicable
Department for Business Innovation and Skills,Intellectual Property Office,21/01/2015,Travel and subsistence UK,Patents Directorate,Hrg UK Inm165668565,H57720150127refvpslvm,5.63,Not applicable
Department for Business Innovation and Skills,Intellectual Property Office,21/01/2015,Travel and subsistence UK,Patents Directorate,Hrg UK Inm165668556,H57720150127pttikbnmv,5.62,Not applicable
Department for Business Innovation and Skills,Intellectual Property Office,21/01/2015,Travel and subsistence UK,Patents Directorate,Easyjet,H57720150123vjysuywpv,83.21,Not applicable
Department for Business Innovation and Skills,Intellectual Property Office,21/01/2015,Travel and subsistence UK,Patents Directorate,Paypal,H57720150123omznuxisb,204,Not applicable
Department for Business Innovation and Skills,Intellectual Property Office,21/01/2015,Travel and subsistence UK,Patents Directorate,Easyjet,H57720150123igfoghigd,84.23,Not applicable
Department for Business Innovation and Skills,Intellectual Property Office,07/01/2015,Travel and subsistence UK,Innovation Directorate,Gotocitrix.Com,H57720150109yzyxrhbtt,70.8,Not applicable
Department for Business Innovation and Skills,Intellectual Property Office,26/01/2015,Travel and subsistence UK,Central Support,Heathrow Express,H57720150128rvegqmtij,35,Not applicable
Department for Business Innovation and Skills,Intellectual Property Office,22/01/2015,Travel and subsistence UK,Trade Marks Directorate,Newport Transport Ltd,H57720150124cvqckeaek,255,Not applicable
Department for Business Innovation and Skills,Intellectual Property Office,19/01/2015,Travel and subsistence UK,Copyright and IP Enforcement Directorate,Hrg UK Inm165665928,H57720150123okexqtres,9.38,Not applicable
Department for Business Innovation and Skills,Intellectual Property Office,19/01/2015,Travel and subsistence UK,Copyright and IP Enforcement Directorate,Hrg UK Inm165665843,H57720150123yejfcgxwl,5.81,Not applicable
Department for Business Innovation and Skills,Intellectual Property Office,16/01/2015,Travel and subsistence UK,Copyright and IP Enforcement Directorate,Hrg UK Inm165665201,H57720150122ybbcaqein,9.33,Not applicable
Department for Business Innovation and Skills,Intellectual Property Office,19/01/2015,Travel and subsistence UK,Copyright and IP Enforcement Directorate,Easyjet,H57720150121jylufyhxv,27,Not applicable
Department for Business Innovation and Skills,Intellectual Property Office,19/01/2015,Travel and subsistence UK,Copyright and IP Enforcement Directorate,Www.Flybe.Cofjxcs2,H57720150121tagyizjsx,115.24,Not applicable
Department for Business Innovation and Skills,Intellectual Property Office,15/01/2015,Travel and subsistence UK,Copyright and IP Enforcement Directorate,Flybe Call C,H57720150117hxsdndmho,57.07,Not applicable
Department for Business Innovation and Skills,Intellectual Property Office,15/01/2015,Travel and subsistence UK,Copyright and IP Enforcement Directorate,Easyjet,H57720150117fnlvhxqwl,45.89,Not applicable
Department for Business Innovation and Skills,Intellectual Property Office,12/01/2015,Travel and subsistence UK,Copyright and IP Enforcement Directorate,Hrg UK Inm165659789,H57720150116ggdhtdoeo,5.38,Not applicable
Department for Business Innovation and Skills,Intellectual Property Office,12/01/2015,Travel and subsistence UK,Copyright and IP Enforcement Directorate,Hrg UK Inm165659788,H57720150116ubpqrlvie,5.43,Not applicable
Department for Business Innovation and Skills,Intellectual Property Office,12/01/2015,Travel and subsistence UK,Copyright and IP Enforcement Directorate,Www.Flybe.Cof29h94,H57720150114kscglotui,49.99,Not applicable
Department for Business Innovation and Skills,Intellectual Property Office,12/01/2015,Travel and subsistence UK,Copyright and IP Enforcement Directorate,Easyjet,H57720150114giydfzprh,42.12,Not applicable
Department for Business Innovation and Skills,Intellectual Property Office,16/01/2015,Travel and subsistence Overseas,Trade Marks Directorate,Easyjet,H57720150120onrorpuvs,159.1,Not applicable
Department for Business Innovation and Skills,Intellectual Property Office,13/01/2015,Travel and subsistence Overseas,Trade Marks Directorate,Hrg UK Inm165661026,H57720150117pwzqdcdeu,30.26,Not applicable
Department for Business Innovation and Skills,Intellectual Property Office,13/01/2015,Travel and subsistence Overseas,Trade Marks Directorate,Easyjet,H57720150115kqsfdiyrk,132.56,Not applicable
Department for Business Innovation and Skills,Intellectual Property Office,27/01/2015,Travel and subsistence Overseas,Patents Directorate,Bristol Airport Limite,H57720150129pogsljwqd,29.79,Not applicable
Department for Business Innovation and Skills,Intellectual Property Office,22/01/2015,Travel and subsistence Overseas,Patents Directorate,Easyjet,H57720150124guahxisqp,142.58,Not applicable
Department for Business Innovation and Skills,Intellectual Property Office,13/01/2015,Travel and subsistence Overseas,Change Program,Hrg UK Inm165660674,H57720150117ubiwrvwmg,15.7,Not applicable
Department for Business Innovation and Skills,Intellectual Property Office,13/01/2015,Travel and subsistence Overseas,Change Program,Hrg UK Inm165660684,H57720150117yznrkoxwl,15.69,Not applicable
Department for Business Innovation and Skills,Intellectual Property Office,13/01/2015,Travel and subsistence Overseas,Change Program,Hrg UK Inm165660670,H57720150117dmkabfivb,15.67,Not applicable
Department for Business Innovation and Skills,Intellectual Property Office,13/01/2015,Travel and subsistence Overseas,Change Program,Hrg UK Inm165660671,H57720150117egtgtmfmp,15.67,Not applicable
Department for Business Innovation and Skills,Intellectual Property Office,13/01/2015,Travel and subsistence Overseas,Change Program,Easyjet,H57720150115rjgkxkmtx,220.91,Not applicable
Department for Business Innovation and Skills,Intellectual Property Office,13/01/2015,Travel and subsistence Overseas,Change Program,Easyjet,H57720150115tuiackxly,228.05,Not applicable
Department for Business Innovation and Skills,Intellectual Property Office,13/01/2015,Travel and subsistence Overseas,Change Program,Easyjet,H57720150115gwryanxer,224.99,Not applicable
Department for Business Innovation and Skills,Intellectual Property Office,13/01/2015,Travel and subsistence Overseas,Change Program,Easyjet,H57720150115jefomvxno,220.91,Not applicable
Department for Business Innovation and Skills,Intellectual Property Office,29/01/2015,Travel and subsistence Overseas,Innovation Directorate,Easyjet,H57720150131vqpjhlxwm,66.89,Not applicable
Department for Business Innovation and Skills,Intellectual Property Office,28/01/2015,Travel and subsistence Overseas,Innovation Directorate,Easyjet,H57720150130uohbmtrko,211.73,Not applicable
Department for Business Innovation and Skills,Intellectual Property Office,16/01/2015,Travel and subsistence Overseas,International Policy Directorate,Hrg UK Inm165665069,H57720150122lyelaylwj,5.5,Not applicable
Department for Business Innovation and Skills,Intellectual Property Office,16/01/2015,Travel and subsistence Overseas,Copyright and IP Enforcement Directorate,Hrg UK Inm165664791,H57720150122skyxxpmpc,5.44,Not applicable
Department for Business Innovation and Skills,Intellectual Property Office,15/01/2015,Travel and subsistence Overseas,International Policy Directorate,Hrg UK Inm165663461,H57720150121isegyklxw,5.77,Not applicable
Department for Business Innovation and Skills,Intellectual Property Office,15/01/2015,Travel and subsistence Overseas,Innovation Directorate,Hrg UK Inm165663772,H57720150121msrwvwpgd,9.5,Not applicable
Department for Business Innovation and Skills,Intellectual Property Office,15/01/2015,Travel and subsistence Overseas,Copyright and IP Enforcement Directorate,Hrg UK Inm165663480,H57720150121swxinjppj,5.74,Not applicable
Department for Business Innovation and Skills,Intellectual Property Office,15/01/2015,Travel and subsistence Overseas,Innovation Directorate,Hrg UK Inm165663771,H57720150121fequvnymw,9.56,Not applicable
Department for Business Innovation and Skills,Intellectual Property Office,15/01/2015,Travel and subsistence Overseas,International Policy Directorate,Easyjet,H57720150117brcguyerv,15.49,Not applicable
Department for Business Innovation and Skills,Intellectual Property Office,15/01/2015,Travel and subsistence Overseas,International Policy Directorate,Easyjet,H57720150117krrcyjrsj,56.2,Not applicable
Department for Business Innovation and Skills,Intellectual Property Office,15/01/2015,Travel and subsistence Overseas,Innovation Directorate,Easyjet,H57720150117gledocsrq,103,Not applicable
Department for Business Innovation and Skills,Intellectual Property Office,15/01/2015,Travel and subsistence Overseas,Innovation Directorate,Easyjet,H57720150117plqrkpaph,108.71,Not applicable
Department for Business Innovation and Skills,Intellectual Property Office,14/01/2015,Travel and subsistence Overseas,Copyright and IP Enforcement Directorate,Easyjet,H57720150116wgveirdch,66.19,Not applicable
Department for Business Innovation and Skills,Intellectual Property Office,08/01/2015,Travel and subsistence Overseas,Copyright and IP Enforcement Directorate,Hrg UK Inm165657086,H57720150114phugjesms,5.35,Not applicable
Department for Business Innovation and Skills,Intellectual Property Office,08/01/2015,Travel and subsistence Overseas,Copyright and IP Enforcement Directorate,Ryanair,H57720150113nssvcivbv,39.77,Not applicable
Department for Business Innovation and Skills,Intellectual Property Office,20/01/2015,Travel and subsistence Overseas,Business Support Directorate,Hrg UK Inm165666808,H57720150124mzrtrbzhs,15.41,Not applicable
Department for Business Innovation and Skills,Intellectual Property Office,20/01/2015,Travel and subsistence Overseas,Business Support Directorate,Easyjet,H57720150122uvwkwdxpo,180.52,Not applicable
Department for Business Innovation and Skills,Intellectual Property Office,09/01/2015,Furniture & Fittings,"People, Property and Services Directorate",Eastern Storage Eq,H57720150113qcjjygorw,587.16,Not applicable
Department for Business Innovation and Skills,Intellectual Property Office,28/01/2015,Minor Buiding Works &Maintenance,"People, Property and Services Directorate",Amazon UK Retail,H57720150130irokfcccy,10.34,Not applicable
Department for Business Innovation and Skills,Intellectual Property Office,05/01/2015,Minor Buiding Works &Maintenance,"People, Property and Services Directorate",City Plumbing Supp,H57720150107synhzkexm,900,Not applicable
Department for Business Innovation and Skills,Intellectual Property Office,06/01/2015,Courier service,Business Support Directorate,Www.Zen.Co.Uk,H57720150108jnvlndqjf,3751.21,Not applicable
Department for Business Innovation and Skills,Intellectual Property Office,23/01/2015,Telephone Rentals and Call Charges,Business Support Directorate,Vodafone,H57720150127iayyludsl,3458.1,Not applicable
Department for Business Innovation and Skills,Intellectual Property Office,21/01/2015,Telephone Rentals and Call Charges,Business Support Directorate,Orange (A/pm/01),H57720150123etejobstp,2123.63,Not applicable
Department for Business Innovation and Skills,Intellectual Property Office,16/01/2015,Telephone Rentals and Call Charges,Business Support Directorate,Meetingzone Ltd,H57720150120xshfnsipo,211.96,Not applicable
Department for Business Innovation and Skills,Intellectual Property Office,05/01/2015,Telephone Rentals and Call Charges,Business Support Directorate,Meetingzone Ltd,H57720150108pbsjunfir,235.06,Not applicable
Department for Business Innovation and Skills,Intellectual Property Office,15/01/2015,Telephone Rentals and Call Charges,Business Support Directorate,Www.Zen.Co.Uk,H57720150117gtcwkvsce,4373.4,Not applicable
Department for Business Innovation and Skills,Intellectual Property Office,12/01/2015,Telephone Rentals and Call Charges,Business Support Directorate,Www.Zen.Co.Uk,H57720150114ltumdumrd,848.39,Not applicable
Department for Business Innovation and Skills,Intellectual Property Office,21/01/2015,Books  Newspapers & Publications,Patents Directorate,Amazon *mktplce Eu-Uk,H57720150123ubulcqbmv,46.73,Not applicable
Department for Business Innovation and Skills,Intellectual Property Office,18/01/2015,Books  Newspapers & Publications,Patents Directorate,"John Wiley & Sons, Inc",H57720150120cddokmlli,28.55,Not applicable
Department for Business Innovation and Skills,Intellectual Property Office,15/01/2015,Books  Newspapers & Publications,Patents Directorate,"John Wiley & Sons, Inc",H57720150116fxllttzqu,28.56,Not applicable
Department for Business Innovation and Skills,Intellectual Property Office,12/01/2015,Books  Newspapers & Publications,Patents Directorate,Society Of Petroleum Engi,H57720150114peebrfmhu,17.05,Not applicable
Department for Business Innovation and Skills,Intellectual Property Office,11/01/2015,Books  Newspapers & Publications,Patents Directorate,Amazon *mktplce Eu-Uk,H57720150113wpbdqzkpt,37.79,Not applicable
Department for Business Innovation and Skills,Intellectual Property Office,31/12/2014,Books  Newspapers & Publications,Business Support Directorate,Amazon Eu,H57720150102iuspaxxlc,12.99,Not applicable
Department for Business Innovation and Skills,Intellectual Property Office,07/01/2015,Books  Newspapers & Publications,Patents Directorate,Amazon Eu,H57720150109novkhxspb,17.97,Not applicable
Department for Business Innovation and Skills,Intellectual Property Office,06/01/2015,Books  Newspapers & Publications,Business Support Directorate,Amazon Eu,H57720150108qeilwvmce,52.74,Not applicable
Department for Business Innovation and Skills,Intellectual Property Office,07/01/2015,Other Stationery & General Supplies,Finance Directorate,West Manufacturing Ltd,H57720150109hnxkpfnth,80.52,Not applicable
Department for Business Innovation and Skills,Intellectual Property Office,29/01/2015,Other Stationery & General Supplies,Finance Directorate,Xma Ltd,H57720150131ojfhxjmqz,242.5,Not applicable
Department for Business Innovation and Skills,Intellectual Property Office,29/01/2015,Other Stationery & General Supplies,Finance Directorate,Xma Ltd,H57720150131peqyfdtjh,279.96,Not applicable
Department for Business Innovation and Skills,Intellectual Property Office,29/01/2015,Other Stationery & General Supplies,Finance Directorate,Xma Ltd,H57720150131yggjxajyx,257.8,Not applicable
Department for Business Innovation and Skills,Intellectual Property Office,23/01/2015,Other Stationery & General Supplies,Finance Directorate,Xma Ltd,H57720150127lvwifvsbr,437.22,Not applicable
Department for Business Innovation and Skills,Intellectual Property Office,21/01/2015,Other Stationery & General Supplies,Finance Directorate,Xma Ltd,H57720150123sjhjbsvev,161.81,Not applicable
Department for Business Innovation and Skills,Intellectual Property Office,16/01/2015,Other Stationery & General Supplies,Finance Directorate,Xma Ltd,H57720150120dvccmzmiy,25.57,Not applicable
Department for Business Innovation and Skills,Intellectual Property Office,13/01/2015,Other Stationery & General Supplies,Finance Directorate,Www.Firstcallink.Co.Uk,H57720150115fzldassvh,236.5,Not applicable
Department for Business Innovation and Skills,Intellectual Property Office,12/01/2015,Other Stationery & General Supplies,Finance Directorate,Xma Ltd,H57720150114ppshknfty,266.49,Not applicable
Department for Business Innovation and Skills,Intellectual Property Office,07/01/2015,Other Stationery & General Supplies,Finance Directorate,Xma Ltd,H57720150109dcegjxkme,227.01,Not applicable
Department for Business Innovation and Skills,Intellectual Property Office,07/01/2015,Other Stationery & General Supplies,Finance Directorate,Xma Ltd,H57720150109wohiapdlu,146.76,Not applicable
Department for Business Innovation and Skills,Intellectual Property Office,02/01/2015,Other Stationery & General Supplies,Finance Directorate,Xma Ltd,H57720150106usungfokv,131.4,Not applicable
Department for Business Innovation and Skills,Intellectual Property Office,15/01/2015,Office Supplies,"People, Property and Services Directorate",Argos Retail Group,H57720150117kucmdxbrj,39.96,Not applicable
Department for Business Innovation and Skills,Intellectual Property Office,31/12/2014,Office Supplies,"People, Property and Services Directorate",Amazon *mktplce Eu-Uk,H57720150102mmqxygssw,7.28,Not applicable
Department for Business Innovation and Skills,Intellectual Property Office,31/12/2014,Office Supplies,"People, Property and Services Directorate",Amazon *mktplce Eu-Uk,H57720150102ylumjrylw,19.59,Not applicable
Department for Business Innovation and Skills,Intellectual Property Office,27/01/2015,Office Supplies,"People, Property and Services Directorate",Www.Nisbets.Com,H57720150129lfqsanhgn,455.97,Not applicable
Department for Business Innovation and Skills,Intellectual Property Office,23/01/2015,Office Supplies,"People, Property and Services Directorate",Healthy Workstations Ltd,H57720150127dnlzyjjom,94.8,Not applicable
Department for Business Innovation and Skills,Intellectual Property Office,22/01/2015,Office Supplies,"People, Property and Services Directorate",Business Ind Solutions,H57720150124gfysqrgfz,3.58,Not applicable
Department for Business Innovation and Skills,Intellectual Property Office,22/01/2015,Office Supplies,"People, Property and Services Directorate",Business Ind Solutions,H57720150124ejfbtdxdo,27.48,Not applicable
Department for Business Innovation and Skills,Intellectual Property Office,22/01/2015,Office Supplies,"People, Property and Services Directorate",Business Ind Solutions,H57720150124kkqrcrtgp,1.79,Not applicable
Department for Business Innovation and Skills,Intellectual Property Office,20/01/2015,Office Supplies,"People, Property and Services Directorate",Timpson Ltd,H57720150122qtcizxyov,24,Not applicable
Department for Business Innovation and Skills,Intellectual Property Office,16/01/2015,Office Supplies,"People, Property and Services Directorate",Newport Locksmiths Ltd,H57720150120jrkrncwft,27.65,Not applicable
Department for Business Innovation and Skills,Intellectual Property Office,08/01/2015,Office Supplies,"People, Property and Services Directorate",Hse Books (Internet),H57720150111xvkxfqfrx,26.4,Not applicable
Department for Business Innovation and Skills,Intellectual Property Office,22/01/2015,Office Supplies,"People, Property and Services Directorate",Griffiths Signs & Eqip,H57720150129vqkbwchwv,178.5,Not applicable
Department for Business Innovation and Skills,Intellectual Property Office,27/01/2015,Office Supplies,"People, Property and Services Directorate",Invopak,H57720150129kpkmuctbd,19.3,Not applicable
Department for Business Innovation and Skills,Intellectual Property Office,20/01/2015,Office Supplies,"People, Property and Services Directorate",Www.Nisbets.Com,H57720150122iqcofxtdl,911.95,Not applicable
Department for Business Innovation and Skills,Intellectual Property Office,12/01/2015,Office Supplies,"People, Property and Services Directorate",Value Products Ltd,H57720150114mfmzmulww,68.4,Not applicable
Department for Business Innovation and Skills,Intellectual Property Office,06/01/2015,Office Supplies,"People, Property and Services Directorate",Ring O Roses,H57720150108iekrluxxh,100,Not applicable
Department for Business Innovation and Skills,Intellectual Property Office,20/01/2015,Office Supplies,"People, Property and Services Directorate",Www.Greenwarehouse.Co.,H57720150122ypnjjdgku,3132,Not applicable
Department for Business Innovation and Skills,Intellectual Property Office,20/01/2015,Office Supplies,"People, Property and Services Directorate",Newey & Eyre,H57720150122mwidymkuj,929.4,Not applicable
Department for Business Innovation and Skills,Intellectual Property Office,21/01/2015,Office Supplies,"People, Property and Services Directorate",Nukey,H57720150123dcqrnjisy,8,Not applicable
Department for Business Innovation and Skills,Intellectual Property Office,21/01/2015,Office Supplies,"People, Property and Services Directorate",Business Ind Solutions,H57720150123wrvngpfwv,479.76,Not applicable
Department for Business Innovation and Skills,Intellectual Property Office,29/01/2015,Office Supplies,"People, Property and Services Directorate",H.C.Slingsby Plc,H57720150131ssffnrjvd,368.4,Not applicable
Department for Business Innovation and Skills,Intellectual Property Office,27/01/2015,Office Supplies,"People, Property and Services Directorate","Amazon Svcs Europe,sar",H57720150129pwcwccgzq,29.9,Not applicable
Department for Business Innovation and Skills,Intellectual Property Office,26/01/2015,Office Supplies,"People, Property and Services Directorate",Business Ind Solutions,H57720150128czdahdxcn,94.5,Not applicable
Department for Business Innovation and Skills,Intellectual Property Office,23/01/2015,Office Supplies,"People, Property and Services Directorate",Healthy Workstations Ltd,H57720150127jfqqwwjdm,68.71,Not applicable
Department for Business Innovation and Skills,Intellectual Property Office,23/01/2015,Office Supplies,"People, Property and Services Directorate",Healthy Workstations Ltd,H57720150127pxwtucsyp,70.8,Not applicable
Department for Business Innovation and Skills,Intellectual Property Office,23/01/2015,Office Supplies,"People, Property and Services Directorate",Machine Mart Web,H57720150127yclgxbqyy,917.77,Not applicable
Department for Business Innovation and Skills,Intellectual Property Office,22/01/2015,Office Supplies,"People, Property and Services Directorate",Business Ind Solutions,H57720150124pjkjtsiqi,907.2,Not applicable
Department for Business Innovation and Skills,Intellectual Property Office,22/01/2015,Office Supplies,"People, Property and Services Directorate",Business Ind Solutions,H57720150124prvinobnc,103.44,Not applicable
Department for Business Innovation and Skills,Intellectual Property Office,22/01/2015,Office Supplies,"People, Property and Services Directorate",Business Ind Solutions,H57720150124xfeassvkh,136.8,Not applicable
Department for Business Innovation and Skills,Intellectual Property Office,21/01/2015,Office Supplies,"People, Property and Services Directorate",Business Ind Solutions,H57720150123jvmfyyash,676.8,Not applicable
Department for Business Innovation and Skills,Intellectual Property Office,21/01/2015,Office Supplies,"People, Property and Services Directorate",Amazon Eu,H57720150123dngniemah,42.73,Not applicable
Department for Business Innovation and Skills,Intellectual Property Office,16/01/2015,Office Supplies,"People, Property and Services Directorate",South Wales Suppliers Lt,H57720150120cdhflrinl,105.6,Not applicable
Department for Business Innovation and Skills,Intellectual Property Office,16/01/2015,Office Supplies,"People, Property and Services Directorate",Amazon Eu,H57720150120cekccgnwa,11.4,Not applicable
Department for Business Innovation and Skills,Intellectual Property Office,16/01/2015,Office Supplies,"People, Property and Services Directorate",Amazon Eu,H57720150120tvpuzrrfi,11.41,Not applicable
Department for Business Innovation and Skills,Intellectual Property Office,16/01/2015,Office Supplies,"People, Property and Services Directorate",Amazon Eu,H57720150120ukwrjqvzb,11.41,Not applicable
Department for Business Innovation and Skills,Intellectual Property Office,16/01/2015,Office Supplies,"People, Property and Services Directorate",Amazon Eu,H57720150120vqyqvqlir,11.41,Not applicable
Department for Business Innovation and Skills,Intellectual Property Office,16/01/2015,Office Supplies,"People, Property and Services Directorate",Newey & Eyre,H57720150120jsjoqkvbe,268.75,Not applicable
Department for Business Innovation and Skills,Intellectual Property Office,16/01/2015,Office Supplies,"People, Property and Services Directorate",Amazon Eu,H57720150120hisjqyqht,11.41,Not applicable
Department for Business Innovation and Skills,Intellectual Property Office,14/01/2015,Office Supplies,"People, Property and Services Directorate",Amazon Eu,H57720150116ngnbtzpxq,43.89,Not applicable
Department for Business Innovation and Skills,Intellectual Property Office,13/01/2015,Office Supplies,"People, Property and Services Directorate",Amazon *mktplce Eu-Uk,H57720150115tzyteuqvd,153.97,Not applicable
Department for Business Innovation and Skills,Intellectual Property Office,13/01/2015,Office Supplies,"People, Property and Services Directorate",Amazon *mktplce Eu-Uk,H57720150115jmvxvnpuv,2.99,Not applicable
Department for Business Innovation and Skills,Intellectual Property Office,09/01/2015,Office Supplies,"People, Property and Services Directorate",Healthy Workstations Ltd,H57720150113uspwwcyjx,51.59,Not applicable
Department for Business Innovation and Skills,Intellectual Property Office,09/01/2015,Office Supplies,"People, Property and Services Directorate",Screwfix Direct,H57720150113myauthhtm,159.93,Not applicable
Department for Business Innovation and Skills,Intellectual Property Office,09/01/2015,Office Supplies,"People, Property and Services Directorate",Healthy Workstations Ltd,H57720150113yntmbsleq,224.46,Not applicable
Department for Business Innovation and Skills,Intellectual Property Office,08/01/2015,Office Supplies,"People, Property and Services Directorate",Screwfix Direct,H57720150111bmmvphcdw,85.69,Not applicable
Department for Business Innovation and Skills,Intellectual Property Office,08/01/2015,Office Supplies,"People, Property and Services Directorate",Acute Sales Ltd,H57720150111cjdnvlkky,402,Not applicable
Department for Business Innovation and Skills,Intellectual Property Office,27/01/2015,Maintenance of computers,Business Support Directorate,"Amazon Svcs Europe,sar",H57720150129cobndgrhc,34.58,Not applicable
Department for Business Innovation and Skills,Intellectual Property Office,26/01/2015,Maintenance of computers,Business Support Directorate,Computer Computer,H57720150128usyudxeln,-146.52,Not applicable
Department for Business Innovation and Skills,Intellectual Property Office,08/12/2014,IT Equipment,Business Support Directorate,Zagg International Dis,H57720150111xkcwnsphp,4499.55,Not applicable
Department for Business Innovation and Skills,Intellectual Property Office,29/01/2015,IT Equipment,Business Support Directorate,Cabling4less,H57720150131xqgmiifdi,47.81,Not applicable
Department for Business Innovation and Skills,Intellectual Property Office,27/01/2015,IT Equipment,Business Support Directorate,Cabling4less,H57720150129ussulorfr,12.97,Not applicable
Department for Business Innovation and Skills,Intellectual Property Office,07/01/2015,IT Equipment,Business Support Directorate,Websitepulse.Com,H57720150111yelhfoxrl,46.3,Not applicable
Department for Business Innovation and Skills,Intellectual Property Office,22/01/2015,IT Equipment,Business Support Directorate,Media & Communications L,H57720150124jlbfvelvt,324,Not applicable
Department for Business Innovation and Skills,Intellectual Property Office,21/01/2015,IT Equipment,Business Support Directorate,Amazon Eu,H57720150123bwsoyebqg,57.69,Not applicable
Department for Business Innovation and Skills,Intellectual Property Office,14/01/2015,IT Equipment,Business Support Directorate,Www.Cablemonkey.Co.Uk,H57720150116oyugmgwhw,95.61,Not applicable
Department for Business Innovation and Skills,Intellectual Property Office,14/01/2015,IT Equipment,Business Support Directorate,Www.Kmhgroup.Com,H57720150116srkyiqsiy,102.42,Not applicable
Department for Business Innovation and Skills,Intellectual Property Office,10/01/2015,IT Equipment,Business Support Directorate,Amazon Eu,H57720150113flxbicpui,52.26,Not applicable
Department for Business Innovation and Skills,Intellectual Property Office,06/01/2015,IT Equipment,Business Support Directorate,Amazon Eu,H57720150108vbadkodny,102.34,Not applicable
Department for Business Innovation and Skills,Intellectual Property Office,06/01/2015,IT Equipment,Business Support Directorate,Www.Perle.Com,H57720150108cnvesakrp,209.04,Not applicable
Department for Business Innovation and Skills,Intellectual Property Office,29/01/2015,Purchase of Software,Business Support Directorate,Adobe Systems Software,H57720150131qzwpqukye,438,Not applicable
Department for Business Innovation and Skills,Intellectual Property Office,24/01/2015,Purchase of Software,Business Support Directorate,Adobe Systems Software,H57720150127eqilduguh,438,Not applicable
Department for Business Innovation and Skills,Intellectual Property Office,23/01/2015,Purchase of Software,Business Support Directorate,Axure Software,H57720150127giquhsqts,811.32,Not applicable
Department for Business Innovation and Skills,Intellectual Property Office,13/01/2015,Purchase of Software,Business Support Directorate,Adobe Systems Software,H57720150115almlkovwh,876,Not applicable
Department for Business Innovation and Skills,Intellectual Property Office,06/01/2015,Software License,Business Support Directorate,Liquid 11 Ltd,H57720150109gclqamwwi,17.95,Not applicable
Department for Business Innovation and Skills,Intellectual Property Office,14/01/2015,Software License,Business Support Directorate,Digicert Inc,H57720150116ickieluyq,727.59,Not applicable
Department for Business Innovation and Skills,Intellectual Property Office,13/01/2015,Software License,Business Support Directorate,Ingram Image Limit,H57720150115eikygrteh,-72,Not applicable
Department for Business Innovation and Skills,Intellectual Property Office,12/01/2015,Software License,Business Support Directorate,Ingram Image Limit,H57720150114pnrvmbenb,706.8,Not applicable
Department for Business Innovation and Skills,Intellectual Property Office,28/01/2015,Marketing and Publicity ,Innovation Directorate,Paypal,H57720150130trkzlprrp,632.4,Not applicable
Department for Business Innovation and Skills,Intellectual Property Office,22/01/2015,Marketing and Publicity ,Innovation Directorate,Paypal,H57720150124fyhxmshzz,12.94,Not applicable
Department for Business Innovation and Skills,Intellectual Property Office,20/01/2015,Entertainment,Innovation Directorate,W M Morrison Plc,H57720150122ytvkppfcw,0.88,Not applicable
Department for Business Innovation and Skills,Intellectual Property Office,20/01/2015,Entertainment,Innovation Directorate,W M Morrison Plc,H57720150122invsbrxyp,5.5,Not applicable
Department for Business Innovation and Skills,Intellectual Property Office,16/01/2015,Entertainment,Copyright and IP Enforcement Directorate,Tesco Stores 2931,H57720150120tlkmvfpwf,4.29,Not applicable
Department for Business Innovation and Skills,Intellectual Property Office,08/01/2015,Entertainment,Copyright and IP Enforcement Directorate,Tesco Stores 2931,H57720150111lyfvwrsbe,8.04,Not applicable
Department for Business Innovation and Skills,Intellectual Property Office,14/01/2015,Entertainment,International Policy Directorate,Marksandspencer.Co,H57720150116gpfpstevz,72.3,Not applicable
Department for Business Innovation and Skills,Intellectual Property Office,20/01/2015,Entertainment,International Policy Directorate,Amazon *mktplce Eu-Uk,H57720150122bqwsbembu,26.36,Not applicable
Department for Business Innovation and Skills,Intellectual Property Office,15/01/2015,Entertainment,International Policy Directorate,Www.Johnlewis.Com,H57720150117emanhbtje,133.6,Not applicable
Department for Business Innovation and Skills,Intellectual Property Office,20/01/2015,Entertainment,Innovation Directorate,Marksandspencer.Co,H57720150122jrkknljwe,182.4,Not applicable
Department for Business Innovation and Skills,Intellectual Property Office,16/01/2015,Entertainment,International Policy Directorate,Amazon *mktplce Eu-Uk,H57720150120ipccmhyow,5.86,Not applicable
Department for Business Innovation and Skills,Intellectual Property Office,16/01/2015,Entertainment,International Policy Directorate,Amazon *mktplce Eu-Uk,H57720150120nhbdxmrhj,6.2,Not applicable
Department for Business Innovation and Skills,Intellectual Property Office,08/01/2015,Entertainment,International Policy Directorate,Www.Intecoffice.Co.Uk,H57720150111wbnqqynfv,-4.04,Not applicable
Department for Business Innovation and Skills,Intellectual Property Office,07/01/2015,Entertainment,International Policy Directorate,Www.Intecoffice.Co.Uk,H57720150109yomynjomb,214.39,Not applicable
Department for Business Innovation and Skills,Intellectual Property Office,26/01/2015,Steering Board,Central Support,Sainsburys Superma,H57720150128cadwaynig,14.6,Not applicable
Department for Business Innovation and Skills,Intellectual Property Office,23/01/2015,Steering Board,Central Support,W M Morrison Plc,H57720150127mfygrcgvd,28.39,Not applicable
Department for Business Innovation and Skills,Intellectual Property Office,12/01/2015,Steering Board,Central Support,Asda Superstore 4928,H57720150114kirvirkgg,7.98,Not applicable
Department for Business Innovation and Skills,Intellectual Property Office,07/01/2015,Steering Board,Central Support,Sainsburys Superma,H57720150109gehsbfkeu,18.45,Not applicable
Department for Business Innovation and Skills,Intellectual Property Office,29/01/2015,Int Co-operation,International Policy Directorate,Mini Cab,H57720150131yxvxybihf,82,Not applicable
Department for Business Innovation and Skills,Intellectual Property Office,29/01/2015,Int Co-operation,International Policy Directorate,Mini Cab,H57720150131ghusboziv,16,Not applicable
Department for Business Innovation and Skills,Intellectual Property Office,29/01/2015,Int Co-operation,International Policy Directorate,Mini Cab,H57720150131bmuyceisn,16,Not applicable
Department for Business Innovation and Skills,Intellectual Property Office,29/01/2015,Int Co-operation,International Policy Directorate,Mini Cab,H57720150131pvpnjcbbi,89.5,Not applicable
Department for Business Innovation and Skills,Intellectual Property Office,29/01/2015,Int Co-operation,International Policy Directorate,Mini Cab,H57720150131qiyvrkgnn,16,Not applicable
Department for Business Innovation and Skills,Intellectual Property Office,29/01/2015,Int Co-operation,International Policy Directorate,Mini Cab,H57720150131qmlmgkyxr,16,Not applicable
Department for Business Innovation and Skills,Intellectual Property Office,29/01/2015,Int Co-operation,International Policy Directorate,Mini Cab,H57720150131lsqhyjzob,16,Not applicable
Department for Business Innovation and Skills,Intellectual Property Office,29/01/2015,Int Co-operation,International Policy Directorate,Mini Cab,H57720150131lxfgvcezg,16,Not applicable
Department for Business Innovation and Skills,Intellectual Property Office,29/01/2015,Int Co-operation,International Policy Directorate,Mini Cab,H57720150131mddsigikf,16,Not applicable
Department for Business Innovation and Skills,Intellectual Property Office,29/01/2015,Int Co-operation,International Policy Directorate,Mini Cab,H57720150131mmvelomjb,82,Not applicable
Department for Business Innovation and Skills,Intellectual Property Office,29/01/2015,Int Co-operation,International Policy Directorate,Mini Cab,H57720150131xvlgvcpjg,16,Not applicable
Department for Business Innovation and Skills,Intellectual Property Office,29/01/2015,Int Co-operation,International Policy Directorate,Mini Cab,H57720150131uzjyvqkvy,89.5,Not applicable
Department for Business Innovation and Skills,Intellectual Property Office,23/01/2015,Eyecare,"People, Property and Services Directorate",Specsavers Corp Evouch,H57720150127hyfvobvro,510,Not applicable
Department for Business Innovation and Skills,Intellectual Property Office,09/01/2015,Other,"People, Property and Services Directorate",Let Risks,H57720150113skgcemycj,99.5,Not applicable
Department for Business Innovation and Skills,Intellectual Property Office,19/01/2015,Other,"People, Property and Services Directorate",Amazon *mktplce Eu-Uk,H57720150121ibffxkpue,17.92,Not applicable
Department for Business Innovation and Skills,Intellectual Property Office,09/01/2015,Other,"People, Property and Services Directorate",Amazon *mktplce Eu-Uk,H57720150113ijirljjpm,15.12,Not applicable
Department for Business Innovation and Skills,Intellectual Property Office,11/01/2015,Other,"People, Property and Services Directorate",Amazon *mktplce Eu-Uk,H57720150113juutrppqj,15.15,Not applicable
